Workbook

Sheet TEAM CODES
B2: TEAM | C2: CODE | D2: COLOR CODE | E2: t1 | F2: Team 1
B3: Delhi Capitals / Delhi Daredevils | C3: DC | E3: t2 | F3: Team 2
B4: Sunrisers Hydrebad/ Deccan Chargers | C4: SRH | E4: Code | F4: Description
B5: Punjab Kings/ Kings XI Punjab | C5: PBKS | E5: t1t1 | F5: No wins of team 1 given last one won by team 1
B6: Mumbai Indians | C6: MI | E6: t1t2 | F6: No wins of team 2 given last one won by team 1
B7: Chennai Super Kings | C7: CSK | E7: t2t1 | F7: No wins of team 1 given last one won by team 2
B8: Rajasthan Royals | C8: RR | E8: t2t2 | F8: No wins of team 2 given last one won by team 2
B9: Kolkata Knight Riders | C9: KKR | E9: dt1 | F9: No wins of team 1 given previous was a draw
B10: Royal Challengers Bangalore | C10: RCB | E10: dt2 | F10: No wins of team 2 given previous was a draw
E11: t1d | F11: No of draw given previous won by team 1
E12: t2d | F12: No of draw given previous won by team 2
E13: dd | F13: No of draw given previous was a draw
D16: Group: | E16: Abhinav Iyer
E17: Juilee Jayade
E18: Sahil Minocha
E19: Sannidhya Upadhayay

Sheet CONSOLIDATED
A1: Team 1 | B1: Team 2 | C1: Winner | D1: Margin | E1: Ground | F1: Match Date | G1: Scorecard | H1: Super over winner
A2: RCB | B2: KKR | C2: KKR | D2: 140 runs | E2: Bengaluru | F2: 2008-04-18 | G2: T20
A3: PBKS | B3: CSK | C3: CSK | D3: 33 runs | E3: Mohali | F3: 2008-04-19 | G3: T20
A4: DC | B4: RR | C4: DC | D4: 9 wickets | E4: Delhi | F4: 2008-04-19 | G4: T20
A5: KKR | B5: SRH | C5: KKR | D5: 5 wickets | E5: Kolkata | F5: 2008-04-20 | G5: T20
A6: MI | B6: RCB | C6: RCB | D6: 5 wickets | E6: Wankhede | F6: 2008-04-20 | G6: T20
A7: RR | B7: PBKS | C7: RR | D7: 6 wickets | E7: Jaipur | F7: 2008-04-21 | G7: T20
A8: SRH | B8: DC | C8: DC | D8: 9 wickets | E8: Hyderabad (Deccan) | F8: 2008-04-22 | G8: T20
A9: CSK | B9: MI | C9: CSK | D9: 6 runs | E9: Chennai | F9: 2008-04-23 | G9: T20
A10: SRH | B10: RR | C10: RR | D10: 3 wickets | E10: Hyderabad (Deccan) | F10: 2008-04-24 | G10: T20
A11: PBKS | B11: MI | C11: PBKS | D11: 66 runs | E11: Mohali | F11: 2008-04-25 | G11: T20
A12: CSK | B12: KKR | C12: CSK | D12: 9 wickets | E12: Chennai | F12: 2008-04-26 | G12: T20
A13: RCB | B13: RR | C13: RR | D13: 7 wickets | E13: Bengaluru | F13: 2008-04-26 | G13: T20
A14: PBKS | B14: DC | C14: PBKS | D14: 4 wickets | E14: Mohali | F14: 2008-04-27 | G14: T20
A15: MI | B15: SRH | C15: SRH | D15: 10 wickets | E15: DY Patil | F15: 2008-04-27 | G15: T20
A16: RCB | B16: CSK | C16: CSK | D16: 13 runs | E16: Bengaluru | F16: 2008-04-28 | G16: T20
A17: KKR | B17: MI | C17: MI | D17: 7 wickets | E17: Kolkata | F17: 2008-04-29 | G17: T20
A18: DC | B18: RCB | C18: DC | D18: 10 runs | E18: Delhi | F18: 2008-04-30 | G18: T20
A19: RR | B19: KKR | C19: RR | D19: 45 runs | E19: Jaipur | F19: 2008-05-01 | G19: T20
A20: SRH | B20: PBKS | C20: PBKS | D20: 7 wickets | E20: Hyderabad (Deccan) | F20: 2008-05-01 | G20: T20
A21: CSK | B21: DC | C21: DC | D21: 8 wickets | E21: Chennai | F21: 2008-05-02 | G21: T20
A22: RCB | B22: SRH | C22: RCB | D22: 3 runs | E22: Bengaluru | F22: 2008-05-03 | G22: T20
A23: PBKS | B23: KKR | C23: PBKS | D23: 9 runs | E23: Mohali | F23: 2008-05-03 | G23: T20
A24: MI | B24: DC | C24: MI | D24: 29 runs | E24: DY Patil | F24: 2008-05-04 | G24: T20
A25: RR | B25: CSK | C25: RR | D25: 8 wickets | E25: Jaipur | F25: 2008-05-04 | G25: T20
A26: RCB | B26: PBKS | C26: PBKS | D26: 6 wickets | E26: Bengaluru | F26: 2008-05-05 | G26: T20
A27: CSK | B27: SRH | C27: SRH | D27: 7 wickets | E27: Chennai | F27: 2008-05-06 | G27: T20
A28: MI | B28: RR | C28: MI | D28: 7 wickets | E28: DY Patil | F28: 2008-05-07 | G28: T20
A29: DC | B29: CSK | C29: CSK | D29: 4 wickets | E29: Delhi | F29: 2008-05-08 | G29: T20
A30: KKR | B30: RCB | C30: KKR | D30: 5 runs | E30: Kolkata | F30: 2008-05-08 | G30: T20
A31: RR | B31: SRH | C31: RR | D31: 8 wickets | E31: Jaipur | F31: 2008-05-09 | G31: T20
A32: CSK | B32: PBKS | C32: CSK | D32: 18 runs | E32: Chennai | F32: 2008-05-10 | G32: T20
A33: SRH | B33: KKR | C33: KKR | D33: 23 runs | E33: Hyderabad (Deccan) | F33: 2008-05-11 | G33: T20
A34: RR | B34: DC | C34: RR | D34: 3 wickets | E34: Jaipur | F34: 2008-05-11 | G34: T20
A35: PBKS | B35: RCB | C35: PBKS | D35: 9 wickets | E35: Mohali | F35: 2008-05-12 | G35: T20
A36: KKR | B36: DC | C36: KKR | D36: 23 runs | E36: Kolkata | F36: 2008-05-13 | G36: T20
A37: MI | B37: CSK | C37: MI | D37: 9 wickets | E37: Wankhede | F37: 2008-05-14 | G37: T20
A38: DC | B38: SRH | C38: DC | D38: 12 runs | E38: Delhi | F38: 2008-05-15 | G38: T20
A39: MI | B39: KKR | C39: MI | D39: 8 wickets | E39: Wankhede | F39: 2008-05-16 | G39: T20
A40: RR | B40: RCB | C40: RR | D40: 65 runs | E40: Jaipur | F40: 2008-05-17 | G40: T20
A41: DC | B41: PBKS | C41: PBKS | D41: 6 runs | E41: Delhi | F41: 2008-05-17 | G41: T20
A42: KKR | B42: CSK | C42: CSK | D42: 3 runs | E42: Kolkata | F42: 2008-05-18 | G42: T20
A43: SRH | B43: MI | C43: MI | D43: 25 runs | E43: Hyderabad (Deccan) | F43: 2008-05-18 | G43: T20
A44: RCB | B44: DC | C44: DC | D44: 5 wickets | E44: Bengaluru | F44: 2008-05-19 | G44: T20
A45: KKR | B45: RR | C45: RR | D45: 6 wickets | E45: Kolkata | F45: 2008-05-20 | G45: T20
A46: MI | B46: PBKS | C46: PBKS | D46: 1 run | E46: Wankhede | F46: 2008-05-21 | G46: T20
A47: CSK | B47: RCB | C47: RCB | D47: 14 runs | E47: Chennai | F47: 2008-05-21 | G47: T20
A48: DC | B48: KKR | C48: D | E48: Delhi | F48: 2008-05-22 | G48: T20
A49: PBKS | B49: SRH | C49: PBKS | D49: 6 wickets | E49: Mohali | F49: 2008-05-23 | G49: T20
A50: CSK | B50: RR | C50: RR | D50: 10 runs | E50: Chennai | F50: 2008-05-24 | G50: T20
A51: DC | B51: MI | C51: DC | D51: 5 wickets | E51: Delhi | F51: 2008-05-24 | G51: T20
A52: SRH | B52: RCB | C52: RCB | D52: 5 wickets | E52: Hyderabad (Deccan) | F52: 2008-05-25 | G52: T20
A53: KKR | B53: PBKS | C53: KKR | D53: 3 wickets | E53: Kolkata | F53: 2008-05-25 | G53: T20
A54: RR | B54: MI | C54: RR | D54: 5 wickets | E54: Jaipur | F54: 2008-05-26 | G54: T20
A55: SRH | B55: CSK | C55: CSK | D55: 7 wickets | E55: Hyderabad (Deccan) | F55: 2008-05-27 | G55: T20
A56: RCB | B56: MI | C56: MI | D56: 9 wickets | E56: Bengaluru | F56: 2008-05-28 | G56: T20
A57: PBKS | B57: RR | C57: PBKS | D57: 41 runs | E57: Mohali | F57: 2008-05-28 | G57: T20
A58: DC | B58: RR | C58: RR | D58: 105 runs | E58: Wankhede | F58: 2008-05-30 | G58: T20
A59: CSK | B59: PBKS | C59: CSK | D59: 9 wickets | E59: Wankhede | F59: 2008-05-31 | G59: T20
A60: CSK | B60: RR | C60: RR | D60: 3 wickets | E60: DY Patil | F60: 2008-06-01 | G60: T20
A61: CSK | B61: MI | C61: MI | D61: 19 runs | E61: Cape Town | F61: 2009-04-18 | G61: T20
A62: RCB | B62: RR | C62: RCB | D62: 75 runs | E62: Cape Town | F62: 2009-04-18 | G62: T20
A63: DC | B63: PBKS | C63: DC | D63: 10 wickets | E63: Cape Town | F63: 2009-04-19 | G63: T20
A64: SRH | B64: KKR | C64: SRH | D64: 8 wickets | E64: Cape Town | F64: 2009-04-19 | G64: T20
A65: RCB | B65: CSK | C65: CSK | D65: 92 runs | E65: Port Elizabeth | F65: 2009-04-20 | G65: T20
A66: PBKS | B66: KKR | C66: KKR | D66: 11 runs | E66: Durban | F66: 2009-04-21 | G66: T20
A67: MI | B67: RR | C67: D | E67: Durban | F67: 2009-04-21 | G67: T20
A68: RCB | B68: SRH | C68: SRH | D68: 24 runs | E68: Cape Town | F68: 2009-04-22 | G68: T20
A69: CSK | B69: DC | C69: DC | D69: 9 runs | E69: Durban | F69: 2009-04-23 | G69: T20
A70: KKR | B70: RR | C70: tied | E70: Cape Town | F70: 2009-04-23 | G70: T20 | H70: RR
A71: RCB | B71: PBKS | C71: PBKS | D71: 7 wickets | E71: Durban | F71: 2009-04-24 | G71: T20
A72: SRH | B72: MI | C72: SRH | D72: 12 runs | E72: Durban | F72: 2009-04-25 | G72: T20
A73: CSK | B73: KKR | C73: D | E73: Cape Town | F73: 2009-04-25 | G73: T20
A74: RCB | B74: DC | C74: DC | D74: 6 wickets | E74: Port Elizabeth | F74: 2009-04-26 | G74: T20
A75: PBKS | B75: RR | C75: PBKS | D75: 27 runs | E75: Cape Town | F75: 2009-04-26 | G75: T20
A76: CSK | B76: SRH | C76: SRH | D76: 6 wickets | E76: Durban | F76: 2009-04-27 | G76: T20
A77: KKR | B77: MI | C77: MI | D77: 92 runs | E77: Port Elizabeth | F77: 2009-04-27 | G77: T20
A78: DC | B78: RR | C78: RR | D78: 5 wickets | E78: Centurion | F78: 2009-04-28 | G78: T20
A79: RCB | B79: KKR | C79: RCB | D79: 5 wickets | E79: Durban | F79: 2009-04-29 | G79: T20
A80: PBKS | B80: MI | C80: PBKS | D80: 3 runs | E80: Durban | F80: 2009-04-29 | G80: T20
A81: SRH | B81: DC | C81: DC | D81: 6 wickets | E81: Centurion | F81: 2009-04-30 | G81: T20
A82: CSK | B82: RR | C82: CSK | D82: 38 runs | E82: Centurion | F82: 2009-04-30 | G82: T20
A83: KKR | B83: MI | C83: MI | D83: 9 runs | E83: East London | F83: 2009-05-01 | G83: T20
A84: RCB | B84: PBKS | C84: RCB | D84: 8 runs | E84: Durban | F84: 2009-05-01 | G84: T20
A85: SRH | B85: RR | C85: RR | D85: 3 wickets | E85: Port Elizabeth | F85: 2009-05-02 | G85: T20
A86: CSK | B86: DC | C86: CSK | D86: 18 runs | E86: Johannesburg | F86: 2009-05-02 | G86: T20
A87: PBKS | B87: KKR | C87: PBKS | D87: 6 wickets | E87: Port Elizabeth | F87: 2009-05-03 | G87: T20
A88: RCB | B88: MI | C88: RCB | D88: 9 wickets | E88: Johannesburg | F88: 2009-05-03 | G88: T20
A89: CSK | B89: SRH | C89: CSK | D89: 78 runs | E89: East London | F89: 2009-05-04 | G89: T20
A90: PBKS | B90: RR | C90: RR | D90: 78 runs | E90: Durban | F90: 2009-05-05 | G90: T20
A91: DC | B91: KKR | C91: DC | D91: 9 wickets | E91: Durban | F91: 2009-05-05 | G91: T20
A92: SRH | B92: MI | C92: SRH | D92: 19 runs | E92: Centurion | F92: 2009-05-06 | G92: T20
A93: RCB | B93: RR | C93: RR | D93: 7 wickets | E93: Centurion | F93: 2009-05-07 | G93: T20
A94: CSK | B94: PBKS | C94: CSK | D94: 12 runs | E94: Centurion | F94: 2009-05-07 | G94: T20
A95: DC | B95: MI | C95: DC | D95: 7 wickets | E95: East London | F95: 2009-05-08 | G95: T20
A96: SRH | B96: PBKS | C96: PBKS | D96: 3 wickets | E96: Kimberley | F96: 2009-05-09 | G96: T20
A97: CSK | B97: RR | C97: CSK | D97: 7 wickets | E97: Kimberley | F97: 2009-05-09 | G97: T20
A98: RCB | B98: MI | C98: MI | D98: 16 runs | E98: Port Elizabeth | F98: 2009-05-10 | G98: T20
A99: DC | B99: KKR | C99: DC | D99: 7 wickets | E99: Johannesburg | F99: 2009-05-10 | G99: T20
A100: SRH | B100: RR | C100: SRH | D100: 53 runs | E100: Kimberley | F100: 2009-05-11 | G100: T20
A101: RCB | B101: KKR | C101: RCB | D101: 6 wickets | E101: Centurion | F101: 2009-05-12 | G101: T20
A102: PBKS | B102: MI | C102: MI | D102: 8 wickets | E102: Centurion | F102: 2009-05-12 | G102: T20
A103: SRH | B103: DC | C103: DC | D103: 12 runs | E103: Durban | F103: 2009-05-13 | G103: T20
A104: RCB | B104: CSK | C104: RCB | D104: 2 wickets | E104: Durban | F104: 2009-05-14 | G104: T20
A105: MI | B105: RR | C105: RR | D105: 2 runs | E105: Durban | F105: 2009-05-14 | G105: T20
A106: DC | B106: PBKS | C106: PBKS | D106: 6 wickets | E106: Bloemfontein | F106: 2009-05-15 | G106: T20
A107: CSK | B107: MI | C107: CSK | D107: 7 wickets | E107: Port Elizabeth | F107: 2009-05-16 | G107: T20
A108: SRH | B108: KKR | C108: SRH | D108: 6 wickets | E108: Johannesburg | F108: 2009-05-16 | G108: T20
A109: SRH | B109: PBKS | C109: PBKS | D109: 1 run | E109: Johannesburg | F109: 2009-05-17 | G109: T20
A110: DC | B110: RR | C110: DC | D110: 14 runs | E110: Bloemfontein | F110: 2009-05-17 | G110: T20
A111: CSK | B111: KKR | C111: KKR | D111: 7 wickets | E111: Centurion | F111: 2009-05-18 | G111: T20
A112: RCB | B112: DC | C112: RCB | D112: 7 wickets | E112: Johannesburg | F112: 2009-05-19 | G112: T20
A113: KKR | B113: RR | C113: KKR | D113: 4 wickets | E113: Durban | F113: 2009-05-20 | G113: T20
A114: CSK | B114: PBKS | C114: CSK | D114: 24 runs | E114: Durban | F114: 2009-05-20 | G114: T20
A115: DC | B115: MI | C115: DC | D115: 4 wickets | E115: Centurion | F115: 2009-05-21 | G115: T20
A116: RCB | B116: SRH | C116: RCB | D116: 12 runs | E116: Centurion | F116: 2009-05-21 | G116: T20
A117: SRH | B117: DC | C117: SRH | D117: 6 wickets | E117: Centurion | F117: 2009-05-22 | G117: T20
A118: CSK | B118: RCB | C118: RCB | D118: 6 wickets | E118: Johannesburg | F118: 2009-05-23 | G118: T20
A119: SRH | B119: RCB | C119: SRH | D119: 6 runs | E119: Johannesburg | F119: 2009-05-24 | G119: T20
A120: SRH | B120: KKR | C120: KKR | D120: 11 runs | E120: DY Patil | F120: 2010-03-12 | G120: T20
A121: MI | B121: RR | C121: MI | D121: 4 runs | E121: Brabourne | F121: 2010-03-13 | G121: T20
A122: PBKS | B122: DC | C122: DC | D122: 5 wickets | E122: Mohali | F122: 2010-03-13 | G122: T20
A123: KKR | B123: RCB | C123: KKR | D123: 7 wickets | E123: Kolkata | F123: 2010-03-14 | G123: T20
A124: CSK | B124: SRH | C124: SRH | D124: 31 runs | E124: Chennai | F124: 2010-03-14 | G124: T20
A125: RR | B125: DC | C125: DC | D125: 6 wickets | E125: Ahmedabad | F125: 2010-03-15 | G125: T20
A126: RCB | B126: PBKS | C126: RCB | D126: 8 wickets | E126: Bengaluru | F126: 2010-03-16 | G126: T20
A127: KKR | B127: CSK | C127: CSK | D127: 55 runs | E127: Kolkata | F127: 2010-03-16 | G127: T20
A128: DC | B128: MI | C128: MI | D128: 98 runs | E128: Delhi | F128: 2010-03-17 | G128: T20
A129: RCB | B129: RR | C129: RCB | D129: 10 wickets | E129: Bengaluru | F129: 2010-03-18 | G129: T20
A130: DC | B130: CSK | C130: CSK | D130: 5 wickets | E130: Delhi | F130: 2010-03-19 | G130: T20
A131: SRH | B131: PBKS | C131: SRH | D131: 6 runs | E131: Cuttack | F131: 2010-03-19 | G131: T20
A132: RR | B132: KKR | C132: RR | D132: 34 runs | E132: Ahmedabad | F132: 2010-03-20 | G132: T20
A133: MI | B133: RCB | C133: RCB | D133: 7 wickets | E133: Brabourne | F133: 2010-03-20 | G133: T20
A134: SRH | B134: DC | C134: SRH | D134: 10 runs | E134: Cuttack | F134: 2010-03-21 | G134: T20
A135: CSK | B135: PBKS | C135: tied | E135: Chennai | F135: 2010-03-21 | G135: T20 | H135: PBKS
A136: MI | B136: KKR | C136: MI | D136: 7 wickets | E136: Brabourne | F136: 2010-03-22 | G136: T20
A137: RCB | B137: CSK | C137: RCB | D137: 36 runs | E137: Bengaluru | F137: 2010-03-23 | G137: T20
A138: PBKS | B138: RR | C138: RR | D138: 31 runs | E138: Mohali | F138: 2010-03-24 | G138: T20
A139: RCB | B139: DC | C139: DC | D139: 17 runs | E139: Bengaluru | F139: 2010-03-25 | G139: T20
A140: MI | B140: CSK | C140: MI | D140: 5 wickets | E140: Brabourne | F140: 2010-03-25 | G140: T20
A141: RR | B141: SRH | C141: RR | D141: 8 wickets | E141: Ahmedabad | F141: 2010-03-26 | G141: T20
A142: PBKS | B142: KKR | C142: KKR | D142: 39 runs | E142: Mohali | F142: 2010-03-27 | G142: T20
A143: RR | B143: CSK | C143: RR | D143: 17 runs | E143: Ahmedabad | F143: 2010-03-28 | G143: T20
A144: SRH | B144: MI | C144: MI | D144: 41 runs | E144: DY Patil | F144: 2010-03-28 | G144: T20
A145: DC | B145: KKR | C145: DC | D145: 40 runs | E145: Delhi | F145: 2010-03-29 | G145: T20
A146: MI | B146: PBKS | C146: MI | D146: 4 wickets | E146: Brabourne | F146: 2010-03-30 | G146: T20
A147: CSK | B147: RCB | C147: CSK | D147: 5 wickets | E147: Chennai | F147: 2010-03-31 | G147: T20
A148: DC | B148: RR | C148: DC | D148: 67 runs | E148: Delhi | F148: 2010-03-31 | G148: T20
A149: KKR | B149: SRH | C149: KKR | D149: 24 runs | E149: Kolkata | F149: 2010-04-01 | G149: T20
A150: PBKS | B150: RCB | C150: RCB | D150: 6 wickets | E150: Mohali | F150: 2010-04-02 | G150: T20
A151: CSK | B151: RR | C151: CSK | D151: 23 runs | E151: Chennai | F151: 2010-04-03 | G151: T20
A152: MI | B152: SRH | C152: MI | D152: 63 runs | E152: Brabourne | F152: 2010-04-03 | G152: T20
A153: KKR | B153: PBKS | C153: PBKS | D153: 8 wickets | E153: Kolkata | F153: 2010-04-04 | G153: T20
A154: DC | B154: RCB | C154: DC | D154: 37 runs | E154: Delhi | F154: 2010-04-04 | G154: T20
A155: SRH | B155: RR | C155: RR | D155: 2 runs | E155: Nagpur | F155: 2010-04-05 | G155: T20
A156: CSK | B156: MI | C156: CSK | D156: 24 runs | E156: Chennai | F156: 2010-04-06 | G156: T20
A157: RR | B157: PBKS | C157: RR | D157: 9 wickets | E157: Jaipur | F157: 2010-04-07 | G157: T20
A158: KKR | B158: DC | C158: KKR | D158: 14 runs | E158: Kolkata | F158: 2010-04-07 | G158: T20
A159: RCB | B159: SRH | C159: SRH | D159: 7 wickets | E159: Bengaluru | F159: 2010-04-08 | G159: T20
A160: PBKS | B160: MI | C160: PBKS | D160: 6 wickets | E160: Mohali | F160: 2010-04-09 | G160: T20
A161: SRH | B161: CSK | C161: SRH | D161: 6 wickets | E161: Nagpur | F161: 2010-04-10 | G161: T20
A162: RCB | B162: KKR | C162: RCB | D162: 7 wickets | E162: Bengaluru | F162: 2010-04-10 | G162: T20
A163: DC | B163: PBKS | C163: PBKS | D163: 7 wickets | E163: Delhi | F163: 2010-04-11 | G163: T20
A164: RR | B164: MI | C164: MI | D164: 37 runs | E164: Jaipur | F164: 2010-04-11 | G164: T20
A165: SRH | B165: RCB | C165: SRH | D165: 13 runs | E165: Nagpur | F165: 2010-04-12 | G165: T20
A166: MI | B166: DC | C166: MI | D166: 39 runs | E166: Brabourne | F166: 2010-04-13 | G166: T20
A167: CSK | B167: KKR | C167: CSK | D167: 9 wickets | E167: Chennai | F167: 2010-04-13 | G167: T20
A168: RR | B168: RCB | C168: RCB | D168: 5 wickets | E168: Jaipur | F168: 2010-04-14 | G168: T20
A169: CSK | B169: DC | C169: DC | D169: 6 wickets | E169: Chennai | F169: 2010-04-15 | G169: T20
A170: PBKS | B170: SRH | C170: SRH | D170: 5 wickets | E170: Dharamsala | F170: 2010-04-16 | G170: T20
A171: RCB | B171: MI | C171: MI | D171: 57 runs | E171: Bengaluru | F171: 2010-04-17 | G171: T20
A172: KKR | B172: RR | C172: KKR | D172: 8 wickets | E172: Kolkata | F172: 2010-04-17 | G172: T20
A173: PBKS | B173: CSK | C173: CSK | D173: 6 wickets | E173: Dharamsala | F173: 2010-04-18 | G173: T20
A174: DC | B174: SRH | C174: SRH | D174: 11 runs | E174: Delhi | F174: 2010-04-18 | G174: T20
A175: KKR | B175: MI | C175: KKR | D175: 9 wickets | E175: Kolkata | F175: 2010-04-19 | G175: T20
A176: MI | B176: RCB | C176: MI | D176: 35 runs | E176: DY Patil | F176: 2010-04-21 | G176: T20
A177: CSK | B177: SRH | C177: CSK | D177: 38 runs | E177: DY Patil | F177: 2010-04-22 | G177: T20
A178: SRH | B178: RCB | C178: RCB | D178: 9 wickets | E178: DY Patil | F178: 2010-04-24 | G178: T20
A179: MI | B179: CSK | C179: CSK | D179: 22 runs | E179: DY Patil | F179: 2010-04-25 | G179: T20
A180: CSK | B180: KKR | C180: CSK | D180: 2 runs | E180: Chennai | F180: 2011-04-08 | G180: T20
A181: SRH | B181: RR | C181: RR | D181: 8 wickets | E181: Hyderabad (Deccan) | F181: 2011-04-09 | G181: T20
A182: DC | B182: MI | C182: MI | D182: 8 wickets | E182: Delhi | F182: 2011-04-10 | G182: T20
A183: KKR | B183: SRH | C183: KKR | D183: 9 runs | E183: Kolkata | F183: 2011-04-11 | G183: T20
A184: RR | B184: DC | C184: RR | D184: 6 wickets | E184: Jaipur | F184: 2011-04-12 | G184: T20
A185: RCB | B185: MI | C185: MI | D185: 9 wickets | E185: Bengaluru | F185: 2011-04-12 | G185: T20
A186: PBKS | B186: CSK | C186: PBKS | D186: 6 wickets | E186: Mohali | F186: 2011-04-13 | G186: T20
A187: SRH | B187: RCB | C187: SRH | D187: 33 runs | E187: Hyderabad (Deccan) | F187: 2011-04-14 | G187: T20
A188: RR | B188: KKR | C188: KKR | D188: 9 wickets | E188: Jaipur | F188: 2011-04-15 | G188: T20
A189: CSK | B189: RCB | C189: CSK | D189: 21 runs | E189: Chennai | F189: 2011-04-16 | G189: T20
A190: SRH | B190: PBKS | C190: PBKS | D190: 8 wickets | E190: Hyderabad (Deccan) | F190: 2011-04-16 | G190: T20
A191: KKR | B191: RR | C191: KKR | D191: 8 wickets | E191: Kolkata | F191: 2011-04-17 | G191: T20
A192: DC | B192: SRH | C192: SRH | D192: 16 runs | E192: Delhi | F192: 2011-04-19 | G192: T20
A193: RCB | B193: RR | C193: D | E193: Bengaluru | F193: 2011-04-19 | G193: T20
A194: PBKS | B194: RR | C194: PBKS | D194: 48 runs | E194: Mohali | F194: 2011-04-21 | G194: T20
A195: KKR | B195: RCB | C195: RCB | D195: 9 wickets | E195: Kolkata | F195: 2011-04-22 | G195: T20
A196: MI | B196: CSK | C196: MI | D196: 8 runs | E196: Wankhede | F196: 2011-04-22 | G196: T20
A197: DC | B197: PBKS | C197: DC | D197: 29 runs | E197: Delhi | F197: 2011-04-23 | G197: T20
A198: SRH | B198: MI | C198: MI | D198: 37 runs | E198: Hyderabad (Deccan) | F198: 2011-04-24 | G198: T20
A199: DC | B199: RCB | C199: RCB | D199: 3 wickets | E199: Delhi | F199: 2011-04-26 | G199: T20
A200: DC | B200: KKR | C200: KKR | D200: 17 runs | E200: Delhi | F200: 2011-04-28 | G200: T20
... 570 more rows

Sheet MI vs CSK
A1: Team 1 | B1: Team 2 | C1: Winner | D1: Margin | E1: Ground | F1: Scorecard | G1: Super over winner | I1: T1 | J1: MI
A2: CSK | B2: MI | C2: CSK | D2: 6 runs | E2: Chennai | F2: T20 | I2: T2 | J2: CSK
A3: MI | B3: CSK | C3: MI | D3: 9 wickets | E3: Wankhede | F3: T20
A4: CSK | B4: MI | C4: MI | D4: 19 runs | E4: Cape Town | F4: T20
A5: CSK | B5: MI | C5: CSK | D5: 7 wickets | E5: Port Elizabeth | F5: T20 | I5: Codes | J5: Values | L5: MATRIX | M5: MI | N5: CSK
A6: MI | B6: CSK | C6: MI | D6: 5 wickets | E6: Brabourne | F6: T20 | I6: t1t1 | J6: 11 | L6: MI | M6: =J6/(J6+J7+J12) -> 0.5789473684 | N6: =J7/(J6+J7+J12) -> 0.4210526316
A7: CSK | B7: MI | C7: CSK | D7: 24 runs | E7: Chennai | F7: T20 | I7: t1t2 | J7: 8 | L7: CSK | M7: =J8/(J8+J9+J13) -> 0.6666666667 | N7: =J9/(J8+J9+J13) -> 0.3333333333
A8: MI | B8: CSK | C8: CSK | D8: 22 runs | E8: DY Patil | F8: T20 | I8: t2t1 | J8: 8
A9: MI | B9: CSK | C9: MI | D9: 8 runs | E9: Wankhede | F9: T20 | I9: t2t2 | J9: 4
A10: CSK | B10: MI | C10: MI | D10: 8 wickets | E10: Chennai | F10: T20 | I10: dt1 | J10: 0
A11: MI | B11: CSK | C11: MI | D11: 2 wickets | E11: Wankhede | F11: T20 | I11: dt2 | J11: 0
A12: CSK | B12: MI | C12: CSK | D12: 38 runs | E12: Bengaluru | F12: T20 | I12: t1d | J12: 0
A13: CSK | B13: MI | C13: MI | D13: 9 runs | E13: Chennai | F13: T20 | I13: t2d | J13: 0
A14: MI | B14: CSK | C14: MI | D14: 60 runs | E14: Wankhede | F14: T20 | I14: dd | J14: 0
A15: CSK | B15: MI | C15: CSK | D15: 48 runs | E15: Delhi | F15: T20 | J15: Latest match winner: CSK
A16: CSK | B16: MI | C16: MI | D16: 23 runs | E16: Kolkata | F16: T20 | I16: =CONCATENATE("probability of"," ",J1," ","winning next 2 matches against"," ",J2,":") -> probability of MI winning next 2 matches against CSK: | O16: =IF(K15=J1,M6*M6,M7*M6) -> 0.3859649123
A17: CSK | B17: MI | C17: CSK | D17: 7 wickets | E17: Dubai (DSC) | F17: T20 | I17: =CONCATENATE("probability of"," ",J1," ","losing next 2 matches against"," ",J2,":") -> probability of MI losing next 2 matches against CSK: | O17: =IF(K15=J1,N6*N7,N7*N7) -> 0.1111111111
A18: MI | B18: CSK | C18: CSK | D18: 4 wickets | E18: Wankhede | F18: T20 | I18: =CONCATENATE("probability of"," ",J1," ","winning 1 and losing 1 from the next two matches against"," ",J2,":") -> probability of MI winning 1 and losing 1 from the next two matches against CSK: | O18: =IF(K15=J1,(N6*M7)+(M6*N6),(M7*N6)+(N7*M7)) -> 0.5029239766
A19: MI | B19: CSK | C19: CSK | D19: 7 wickets | E19: Brabourne | F19: T20
A20: MI | B20: CSK | C20: CSK | D20: 6 wickets | E20: Wankhede | F20: T20 | I20: =CONCATENATE("probability of"," ",J2," ","winning next 2 matches against"," ",J1,":") -> probability of CSK winning next 2 matches against MI: | O20: =IF(K15=J1,N6*N7,N7*N7) -> 0.1111111111
A21: CSK | B21: MI | C21: MI | D21: 6 wickets | E21: Chennai | F21: T20 | I21: =CONCATENATE("probability of"," ",J2," ","losing next 2 matches against"," ",J1,":") -> probability of CSK losing next 2 matches against MI: | O21: =IF(K15=J1,M6*M6,M7*M6) -> 0.3859649123
A22: CSK | B22: MI | C22: MI | D22: 25 runs | E22: Wankhede | F22: T20 | I22: =CONCATENATE("probability of"," ",J2," ","winning 1 and losing 1 from the next two matches against"," ",J1,":") -> probability of CSK winning 1 and losing 1 from the next two matches against MI: | O22: =O18 -> 0.5029239766
A23: CSK | B23: MI | C23: MI | D23: 41 runs | E23: Kolkata | F23: T20
A24: MI | B24: CSK | C24: CSK | D24: 1 wicket | E24: Wankhede | F24: T20
A25: CSK | B25: MI | C25: MI | D25: 8 wickets | E25: Pune | F25: T20
A26: MI | B26: CSK | C26: MI | D26: 37 runs | E26: Wankhede | F26: T20
A27: CSK | B27: MI | C27: MI | D27: 46 runs | E27: Chennai | F27: T20
A28: CSK | B28: MI | C28: MI | D28: 6 wickets | E28: Chennai | F28: T20
A29: CSK | B29: MI | C29: MI | D29: 1 run | E29: Hyderabad (Deccan) | F29: T20
A30: MI | B30: CSK | C30: CSK | D30: 5 wickets | E30: Abu Dhabi | F30: T20
A31: CSK | B31: MI | C31: MI | D31: 10 wickets | E31: Sharjah | F31: T20
A32: MI | B32: CSK | C32: MI | D32: 4 wickets | E32: Delhi | F32: T20
A33: CSK | B33: MI | C33: CSK | D33: 20 runs | E33: Dubai (DSC) | F33: T20

Sheet MI vs DC
A1: Team 1 | B1: Team 2 | C1: Winner | D1: Margin | E1: Ground | F1: Scorecard | G1: Super over winner | I1: T1 | J1: MI
A2: MI | B2: DC | C2: MI | D2: 29 runs | E2: DY Patil | F2: T20 | I2: T2 | J2: DC
A3: DC | B3: MI | C3: DC | D3: 5 wickets | E3: Delhi | F3: T20
A4: DC | B4: MI | C4: DC | D4: 7 wickets | E4: East London | F4: T20 | I4: Codes | J4: Values
A5: DC | B5: MI | C5: DC | D5: 4 wickets | E5: Centurion | F5: T20 | I5: t1t1 | J5: 9 | L5: MATRIX | M5: MI | N5: DC
A6: DC | B6: MI | C6: MI | D6: 98 runs | E6: Delhi | F6: T20 | I6: t1t2 | J6: 7 | L6: MI | M6: =J5/(J5+J6+J11) -> 0.5625 | N6: =J6/(J5+J6+J11) -> 0.4375
A7: MI | B7: DC | C7: MI | D7: 39 runs | E7: Brabourne | F7: T20 | I7: t2t1 | J7: 6 | L7: DC | M7: =J7/(J7+J8+J12) -> 0.4615384615 | N7: =J8/(J7+J8+J12) -> 0.5384615385
A8: DC | B8: MI | C8: MI | D8: 8 wickets | E8: Delhi | F8: T20 | I8: t2t2 | J8: 7
A9: MI | B9: DC | C9: MI | D9: 32 runs | E9: Wankhede | F9: T20 | I9: dt1 | J9: 0
A10: MI | B10: DC | C10: DC | D10: 7 wickets | E10: Wankhede | F10: T20 | I10: dt2 | J10: 0
A11: DC | B11: MI | C11: DC | D11: 37 runs | E11: Delhi | F11: T20 | I11: t1d | J11: 0
A12: MI | B12: DC | C12: MI | D12: 44 runs | E12: Wankhede | F12: T20 | I12: t2d | J12: 0
A13: DC | B13: MI | C13: DC | D13: 9 wickets | E13: Delhi | F13: T20 | I13: dd | J13: 0
A14: DC | B14: MI | C14: DC | D14: 6 wickets | E14: Sharjah | F14: T20 | I14: Total | J14: =SUM(J5:J13) -> 29
A15: MI | B15: DC | C15: MI | D15: 15 runs | E15: Wankhede | F15: T20 | O15: Latest match winner: | P15: DC
A16: DC | B16: MI | C16: DC | D16: 37 runs | E16: Delhi | F16: T20 | I16: =CONCATENATE("probability of"," ",J1," ","winning next 2 matches against"," ",J2,":") -> probability of MI winning next 2 matches against DC: | O16: =IF(P15=J1,M6*M6,M7*M6) -> 0.2596153846
A17: MI | B17: DC | C17: MI | D17: 5 wickets | E17: Wankhede | F17: T20 | I17: =CONCATENATE("probability of"," ",J1," ","losing next 2 matches against"," ",J2,":") -> probability of MI losing next 2 matches against DC: | O17: =IF(P15=J1,N6*N7,N7*N7) -> 0.2899408284
A18: DC | B18: MI | C18: DC | D18: 10 runs | E18: Delhi | F18: T20 | I18: =CONCATENATE("probability of"," ",J1," ","winning 1 and losing 1 from the next two matches against"," ",J2,":") -> probability of MI winning 1 and losing 1 from the next two matches against DC: | O18: =IF(P15=J1,(N6*M7)+(M6*N6),(M7*N6)+(N7*M7)) -> 0.450443787
A19: MI | B19: DC | C19: MI | D19: 80 runs | E19: Visakhapatnam | F19: T20
A20: MI | B20: DC | C20: MI | D20: 14 runs | E20: Wankhede | F20: T20 | I20: =CONCATENATE("probability of"," ",J2," ","winning next 2 matches against"," ",J1,":") -> probability of DC winning next 2 matches against MI: | O20: =IF(P15=J1,N6*N7,N7*N7) -> 0.2899408284
A21: DC | B21: MI | C21: MI | D21: 146 runs | E21: Delhi | F21: T20 | I21: =CONCATENATE("probability of"," ",J2," ","losing next 2 matches against"," ",J1,":") -> probability of DC losing next 2 matches against MI: | O21: =IF(P15=J1,M6*M6,M7*M6) -> 0.2596153846
A22: MI | B22: DC | C22: DC | D22: 7 wickets | E22: Wankhede | F22: T20 | I22: =CONCATENATE("probability of"," ",J2," ","winning 1 and losing 1 from the next two matches against"," ",J1,":") -> probability of DC winning 1 and losing 1 from the next two matches against MI: | O22: =O18 -> 0.450443787
A23: DC | B23: MI | C23: DC | D23: 11 runs | E23: Delhi | F23: T20
A24: MI | B24: DC | C24: DC | D24: 37 runs | E24: Wankhede | F24: T20
A25: DC | B25: MI | C25: MI | D25: 40 runs | E25: Delhi | F25: T20
A26: MI | B26: DC | C26: MI | D26: 5 wickets | E26: Abu Dhabi | F26: T20
A27: DC | B27: MI | C27: MI | D27: 9 wickets | E27: Dubai (DSC) | F27: T20
A28: DC | B28: MI | C28: MI | D28: 57 runs | E28: Dubai (DSC) | F28: T20
A29: DC | B29: MI | C29: MI | D29: 5 wickets | E29: Dubai (DSC) | F29: T20
A30: DC | B30: MI | C30: DC | D30: 6 wickets | E30: Chennai | F30: T20
A31: MI | B31: DC | C31: DC | D31: 4 wickets | E31: Sharjah | F31: T20

Sheet MI vs RR
A1: Team 1 | B1: Team 2 | C1: Winner | D1: Margin | E1: Ground | F1: Scorecard | G1: Super over winner | I1: T1 | J1: MI
A2: MI | B2: RR | C2: MI | D2: 7 wickets | E2: DY Patil | F2: T20 | I2: T2 | J2: RR
A3: RR | B3: MI | C3: RR | D3: 5 wickets | E3: Jaipur | F3: T20
A4: MI | B4: RR | C4: D | E4: Durban | F4: T20 | I4: Codes | J4: Values
A5: MI | B5: RR | C5: RR | D5: 2 runs | E5: Durban | F5: T20 | I5: t1t1 | J5: 6 | L5: MATRIX | M5: MI | N5: RR | O5: D
A6: MI | B6: RR | C6: MI | D6: 4 runs | E6: Brabourne | F6: T20 | I6: t1t2 | J6: 6 | L6: MI | M6: =J5/(J5+J6+J11) -> 0.5 | N6: =J6/(J5+J6+J11) -> 0.5 | O6: =J11/(J11+J5+J6) -> 0
A7: RR | B7: MI | C7: MI | D7: 37 runs | E7: Jaipur | F7: T20 | I7: t2t1 | J7: 6 | L7: RR | M7: =J7/(J7+J8+J12) -> 0.5454545455 | N7: =J8/(J7+J8+J12) -> 0.3636363636 | O7: =J12/(J12+J7+J8) -> 0.09090909091
A8: RR | B8: MI | C8: RR | D8: 7 wickets | E8: Jaipur | F8: T20 | I8: t2t2 | J8: 4 | L8: D | M8: =J9/(J9+J10+J13) -> 0 | N8: =J10/(J9+J10+J13) -> 1 | O8: =J13/(J13+J9+J10) -> 0
A9: MI | B9: RR | C9: RR | D9: 10 wickets | E9: Wankhede | F9: T20 | I9: dt1 | J9: 0
A10: MI | B10: RR | C10: MI | D10: 27 runs | E10: Wankhede | F10: T20 | I10: dt2 | J10: 1
A11: RR | B11: MI | C11: MI | D11: 10 wickets | E11: Jaipur | F11: T20 | I11: t1d | J11: 0
A12: RR | B12: MI | C12: RR | D12: 87 runs | E12: Jaipur | F12: T20 | I12: t2d | J12: 1
A13: MI | B13: RR | C13: MI | D13: 14 runs | E13: Wankhede | F13: T20 | I13: dd | J13: 0
A14: MI | B14: RR | C14: MI | D14: 4 wickets | E14: Kolkata | F14: T20 | I14: Total | J14: =SUM(J5:J13) -> 24
A15: RR | B15: MI | C15: MI | D15: 25 runs | E15: Ahmedabad | F15: T20 | O15: Latest match winner: | P15: MI
A16: MI | B16: RR | C16: MI | D16: 5 wickets | E16: Wankhede | F16: T20 | I16: =CONCATENATE("probability of"," ",J1," ","winning next 2 matches against"," ",J2,":") -> probability of MI winning next 2 matches against RR: | O16: =IF(P15=J1,M6*M6,M7*M6) -> 0.25
A17: RR | B17: MI | C17: RR | D17: 7 wickets | E17: Ahmedabad | F17: T20 | I17: =CONCATENATE("probability of"," ",J1," ","losing next 2 matches against"," ",J2,":") -> probability of MI losing next 2 matches against RR: | O17: =IF(P15=J1,N6*N7,N7*N7) -> 0.1818181818
A18: MI | B18: RR | C18: MI | D18: 8 runs | E18: Wankhede | F18: T20 | I18: =CONCATENATE("probability of"," ",J1," ","winning 1 and losing 1 from the next two matches against"," ",J2,":") -> probability of MI winning 1 and losing 1 from the next two matches against RR: | O18: =IF(P15=J1,(N6*M7)+(M6*N6),(M7*N6)+(N7*M7)) -> 0.5227272727
A19: RR | B19: MI | C19: RR | D19: 3 wickets | E19: Jaipur | F19: T20
A20: MI | B20: RR | C20: RR | D20: 7 wickets | E20: Wankhede | F20: T20 | I20: =CONCATENATE("probability of"," ",J2," ","winning next 2 matches against"," ",J1,":") -> probability of RR winning next 2 matches against MI: | O20: =IF(P15=J1,N6*N7,N7*N7) -> 0.1818181818
A21: MI | B21: RR | C21: RR | D21: 4 wickets | E21: Wankhede | F21: T20 | I21: =CONCATENATE("probability of"," ",J2," ","losing next 2 matches against"," ",J1,":") -> probability of RR losing next 2 matches against MI: | O21: =IF(P15=J1,M6*M6,M7*M6) -> 0.25
A22: RR | B22: MI | C22: RR | D22: 5 wickets | E22: Jaipur | F22: T20 | I22: =CONCATENATE("probability of"," ",J2," ","winning 1 and losing 1 from the next two matches against"," ",J1,":") -> probability of RR winning 1 and losing 1 from the next two matches against MI: | O22: =O18 -> 0.5227272727
A23: MI | B23: RR | C23: MI | D23: 57 runs | E23: Abu Dhabi | F23: T20
A24: RR | B24: MI | C24: RR | D24: 8 wickets | E24: Abu Dhabi | F24: T20
A25: MI | B25: RR | C25: MI | D25: 7 wickets | E25: Delhi | F25: T20
A26: RR | B26: MI | C26: MI | D26: 8 wickets | E26: Sharjah | F26: T20

Sheet MI vs SRH
A1: Team 1 | B1: Team 2 | C1: Winner | D1: Margin | E1: Ground | F1: Scorecard | G1: Super over winner | I1: T1 | J1: MI
A2: MI | B2: SRH | C2: SRH | D2: 10 wickets | E2: DY Patil | F2: T20 | I2: T2 | J2: SRH
A3: SRH | B3: MI | C3: MI | D3: 25 runs | E3: Hyderabad (Deccan) | F3: T20
A4: SRH | B4: MI | C4: SRH | D4: 12 runs | E4: Durban | F4: T20 | I4: Codes | J4: Values
A5: SRH | B5: MI | C5: SRH | D5: 19 runs | E5: Centurion | F5: T20 | I5: t1t1 | J5: 8 | L5: MATRIX | M5: MI | N5: SRH
A6: SRH | B6: MI | C6: MI | D6: 41 runs | E6: DY Patil | F6: T20 | I6: t1t2 | J6: 7 | L6: MI | M6: =J5/(J5+J6+J11) -> 0.5333333333 | N6: =J6/(J5+J6+J11) -> 0.4666666667
A7: MI | B7: SRH | C7: MI | D7: 63 runs | E7: Brabourne | F7: T20 | I7: t2t1 | J7: 8 | L7: SRH | M7: =J7/(J7+J8+J12) -> 0.6666666667 | N7: =J8/(J7+J8+J12) -> 0.3333333333
A8: SRH | B8: MI | C8: MI | D8: 37 runs | E8: Hyderabad (Deccan) | F8: T20 | I8: t2t2 | J8: 4
A9: MI | B9: SRH | C9: SRH | D9: 10 runs | E9: Wankhede | F9: T20 | I9: dt1 | J9: 0
A10: SRH | B10: MI | C10: MI | D10: 5 wickets | E10: Visakhapatnam | F10: T20 | I10: dt2 | J10: 0
A11: MI | B11: SRH | C11: MI | D11: 5 wickets | E11: Wankhede | F11: T20 | I11: t1d | J11: 0
A12: SRH | B12: MI | C12: SRH | D12: 7 wickets | E12: Hyderabad (Deccan) | F12: T20 | I12: t2d | J12: 0
A13: MI | B13: SRH | C13: MI | D13: 7 wickets | E13: Wankhede | F13: T20 | I13: dd | J13: 0
A14: MI | B14: SRH | C14: SRH | D14: 15 runs | E14: Dubai (DSC) | F14: T20 | I14: Total | J14: =SUM(J5:J13) -> 27
A15: SRH | B15: MI | C15: MI | D15: 7 wickets | E15: Hyderabad (Deccan) | F15: T20 | O15: Latest match winner: | P15: MI
A16: MI | B16: SRH | C16: MI | D16: 20 runs | E16: Wankhede | F16: T20 | I16: =CONCATENATE("probability of"," ",J1," ","winning next 2 matches against"," ",J2,":") -> probability of MI winning next 2 matches against SRH: | O16: =IF(P15=J1,M6*M6,M7*M6) -> 0.2844444444
A17: SRH | B17: MI | C17: MI | D17: 9 wickets | E17: Hyderabad (Deccan) | F17: T20 | I17: =CONCATENATE("probability of"," ",J1," ","losing next 2 matches against"," ",J2,":") -> probability of MI losing next 2 matches against SRH: | O17: =IF(P15=J1,N6*N7,N7*N7) -> 0.1555555556
A18: SRH | B18: MI | C18: SRH | D18: 7 wickets | E18: Hyderabad (Deccan) | F18: T20 | I18: =CONCATENATE("probability of"," ",J1," ","winning 1 and losing 1 from the next two matches against"," ",J2,":") -> probability of MI winning 1 and losing 1 from the next two matches against SRH: | O18: =IF(P15=J1,(N6*M7)+(M6*N6),(M7*N6)+(N7*M7)) -> 0.56
A19: MI | B19: SRH | C19: SRH | D19: 85 runs | E19: Visakhapatnam | F19: T20
A20: MI | B20: SRH | C20: MI | D20: 4 wickets | E20: Wankhede | F20: T20 | I20: =CONCATENATE("probability of"," ",J2," ","winning next 2 matches against"," ",J1,":") -> probability of SRH winning next 2 matches against MI: | O20: =IF(P15=J1,N6*N7,N7*N7) -> 0.1555555556
A21: SRH | B21: MI | C21: SRH | D21: 7 wickets | E21: Hyderabad (Deccan) | F21: T20 | I21: =CONCATENATE("probability of"," ",J2," ","losing next 2 matches against"," ",J1,":") -> probability of SRH losing next 2 matches against MI: | O21: =IF(P15=J1,M6*M6,M7*M6) -> 0.2844444444
A22: SRH | B22: MI | C22: SRH | D22: 1 wicket | E22: Hyderabad (Deccan) | F22: T20 | I22: =CONCATENATE("probability of"," ",J2," ","winning 1 and losing 1 from the next two matches against"," ",J1,":") -> probability of SRH winning 1 and losing 1 from the next two matches against MI: | O22: =O18 -> 0.56
A23: MI | B23: SRH | C23: SRH | D23: 31 runs | E23: Wankhede | F23: T20
A24: SRH | B24: MI | C24: MI | D24: 40 runs | E24: Hyderabad (Deccan) | F24: T20
A25: MI | B25: SRH | C25: MI | E25: Wankhede | F25: T20 | G25: MI
A26: MI | B26: SRH | C26: MI | D26: 34 runs | E26: Sharjah | F26: T20
A27: SRH | B27: MI | C27: SRH | D27: 10 wickets | E27: Sharjah | F27: T20
A28: MI | B28: SRH | C28: MI | D28: 13 runs | E28: Chennai | F28: T20
A29: SRH | B29: MI | C29: MI | D29: 42 runs | E29: Abu Dhabi | F29: T20

Sheet MI vs RCB
A1: Team 1 | B1: Team 2 | C1: Winner | D1: Margin | E1: Ground | F1: Scorecard | G1: Super over winner | I1: T1 | J1: MI
A2: MI | B2: RCB | C2: RCB | D2: 5 wickets | E2: Wankhede | F2: T20 | I2: T2 | J2: RCB
A3: RCB | B3: MI | C3: MI | D3: 9 wickets | E3: Bengaluru | F3: T20
A4: RCB | B4: MI | C4: RCB | D4: 9 wickets | E4: Johannesburg | F4: T20 | I4: Codes | J4: Values
A5: RCB | B5: MI | C5: MI | D5: 16 runs | E5: Port Elizabeth | F5: T20 | I5: t1t1 | J5: 8 | L5: MATRIX | M5: MI | N5: RCB
A6: MI | B6: RCB | C6: RCB | D6: 7 wickets | E6: Brabourne | F6: T20 | I6: t1t2 | J6: 9 | L6: MI | M6: =J5/(J5+J6+J11) -> 0.4705882353 | N6: =J6/(J5+J6+J11) -> 0.5294117647
A7: RCB | B7: MI | C7: MI | D7: 57 runs | E7: Bengaluru | F7: T20 | I7: t2t1 | J7: 9 | L7: RCB | M7: =J7/(J7+J8+J12) -> 0.8181818182 | N7: =J8/(J7+J8+J12) -> 0.1818181818
A8: MI | B8: RCB | C8: MI | D8: 35 runs | E8: DY Patil | F8: T20 | I8: t2t2 | J8: 2
A9: RCB | B9: MI | C9: MI | D9: 9 wickets | E9: Bengaluru | F9: T20 | I9: dt1 | J9: 0
A10: MI | B10: RCB | C10: RCB | D10: 43 runs | E10: Chennai | F10: T20 | I10: dt2 | J10: 0
A11: MI | B11: RCB | C11: RCB | D11: 9 wickets | E11: Wankhede | F11: T20 | I11: t1d | J11: 0
A12: RCB | B12: MI | C12: MI | D12: 5 wickets | E12: Bengaluru | F12: T20 | I12: t2d | J12: 0
A13: RCB | B13: MI | C13: RCB | D13: 2 runs | E13: Bengaluru | F13: T20 | I13: dd | J13: 0
A14: MI | B14: RCB | C14: MI | D14: 58 runs | E14: Wankhede | F14: T20 | I14: Total | J14: =SUM(J5:J13) -> 28
A15: RCB | B15: MI | C15: RCB | D15: 7 wickets | E15: Dubai (DSC) | F15: T20 | O15: Latest match winner: | P15: RCB
A16: MI | B16: RCB | C16: MI | D16: 19 runs | E16: Wankhede | F16: T20 | I16: =CONCATENATE("probability of"," ",J1," ","winning next 2 matches against"," ",J2,":") -> probability of MI winning next 2 matches against RCB: | O16: =IF(P15=J1,M6*M6,M7*M6) -> 0.385026738
A17: RCB | B17: MI | C17: MI | D17: 18 runs | E17: Bengaluru | F17: T20 | I17: =CONCATENATE("probability of"," ",J1," ","losing next 2 matches against"," ",J2,":") -> probability of MI losing next 2 matches against RCB: | O17: =IF(P15=J1,N6*N7,N7*N7) -> 0.03305785124
A18: MI | B18: RCB | C18: RCB | D18: 39 runs | E18: Wankhede | F18: T20 | I18: =CONCATENATE("probability of"," ",J1," ","winning 1 and losing 1 from the next two matches against"," ",J2,":") -> probability of MI winning 1 and losing 1 from the next two matches against RCB: | O18: =IF(P15=J1,(N6*M7)+(M6*N6),(M7*N6)+(N7*M7)) -> 0.5819154108
A19: MI | B19: RCB | C19: MI | D19: 6 wickets | E19: Wankhede | F19: T20
A20: RCB | B20: MI | C20: MI | D20: 6 wickets | E20: Bengaluru | F20: T20 | I20: =CONCATENATE("probability of"," ",J2," ","winning next 2 matches against"," ",J1,":") -> probability of RCB winning next 2 matches against MI: | O20: =IF(P15=J1,N6*N7,N7*N7) -> 0.03305785124
A21: RCB | B21: MI | C21: MI | D21: 4 wickets | E21: Bengaluru | F21: T20 | I21: =CONCATENATE("probability of"," ",J2," ","losing next 2 matches against"," ",J1,":") -> probability of RCB losing next 2 matches against MI: | O21: =IF(P15=J1,M6*M6,M7*M6) -> 0.385026738
A22: MI | B22: RCB | C22: MI | D22: 5 wickets | E22: Wankhede | F22: T20 | I22: =CONCATENATE("probability of"," ",J2," ","winning 1 and losing 1 from the next two matches against"," ",J1,":") -> probability of RCB winning 1 and losing 1 from the next two matches against MI: | O22: =O18 -> 0.5819154108
A23: MI | B23: RCB | C23: MI | D23: 46 runs | E23: Wankhede | F23: T20
A24: RCB | B24: MI | C24: RCB | D24: 14 runs | E24: Bengaluru | F24: T20
A25: RCB | B25: MI | C25: MI | D25: 6 runs | E25: Bengaluru | F25: T20
A26: MI | B26: RCB | C26: MI | D26: 5 wickets | E26: Wankhede | F26: T20
A27: RCB | B27: MI | C27: RCB | E27: Dubai (DSC) | F27: T20 | G27: RCB
A28: MI | B28: RCB | C28: MI | D28: 5 wickets | E28: Abu Dhabi | F28: T20
A29: MI | B29: RCB | C29: RCB | D29: 2 wickets | E29: Chennai | F29: T20
A30: RCB | B30: MI | C30: RCB | D30: 54 runs | E30: Dubai (DSC) | F30: T20

Sheet MI VS KKR
A1: Team 1 | B1: Team 2 | C1: Winner | D1: Margin | E1: Ground | F1: Scorecard | G1: Super over winner | I1: T1 | J1: MI
A2: KKR | B2: MI | C2: MI | D2: 7 wickets | E2: Kolkata | F2: T20 | I2: T2 | J2: KKR
A3: MI | B3: KKR | C3: MI | D3: 8 wickets | E3: Wankhede | F3: T20
A4: KKR | B4: MI | C4: MI | D4: 92 runs | E4: Port Elizabeth | F4: T20 | I4: Column1 | J4: Column2
A5: KKR | B5: MI | C5: MI | D5: 9 runs | E5: East London | F5: T20 | I5: t1t1 | J5: 17 | M5: MI | N5: KKR
A6: MI | B6: KKR | C6: MI | D6: 7 wickets | E6: Brabourne | F6: T20 | I6: t1t2 | J6: 5 | L6: MI | M6: =J5/(J5+J6+J11) -> 0.7727272727 | N6: =J6/(J5+J6+J11) -> 0.2272727273
A7: KKR | B7: MI | C7: KKR | D7: 9 wickets | E7: Kolkata | F7: T20 | I7: t2t1 | J7: 4 | L7: KKR | M7: =J7/(J7+J8+J12) -> 0.6666666667 | N7: =J8/(J7+J8+J12) -> 0.3333333333
A8: KKR | B8: MI | C8: MI | D8: 5 wickets | E8: Kolkata | F8: T20 | I8: t2t2 | J8: 2
A9: MI | B9: KKR | C9: MI | D9: 4 wickets | E9: Wankhede | F9: T20 | I9: dt1 | J9: 0
A10: KKR | B10: MI | C10: MI | D10: 27 runs | E10: Kolkata | F10: T20 | I10: dt2 | J10: 0
A11: MI | B11: KKR | C11: KKR | D11: 32 runs | E11: Wankhede | F11: T20 | I11: t1d | J11: 0
A12: KKR | B12: MI | C12: MI | D12: 5 wickets | E12: Kolkata | F12: T20 | I12: t2d | J12: 0
A13: MI | B13: KKR | C13: MI | D13: 65 runs | E13: Wankhede | F13: T20 | I13: dd | J13: 0
A14: MI | B14: KKR | C14: KKR | D14: 41 runs | E14: Abu Dhabi | F14: T20 | I14: Total | J14: =SUM(J5:J13) -> 28
A15: KKR | B15: MI | C15: KKR | D15: 6 wickets | E15: Cuttack | F15: T20 | O15: Latest match winner: | P15: KKR
A16: KKR | B16: MI | C16: KKR | D16: 7 wickets | E16: Kolkata | F16: T20 | I16: =CONCATENATE("probability of"," ",J1," ","winning next 2 matches against"," ",J2,":") -> probability of MI winning next 2 matches against KKR: | O16: =IF(P15=J1,M6*M6,M7*M6) -> 0.5151515152
A17: MI | B17: KKR | C17: MI | D17: 5 runs | E17: Wankhede | F17: T20 | I17: =CONCATENATE("probability of"," ",J1," ","losing next 2 matches against"," ",J2,":") -> probability of MI losing next 2 matches against KKR: | O17: =IF(P15=J1,N6*N7,N7*N7) -> 0.1111111111
A18: KKR | B18: MI | C18: MI | D18: 6 wickets | E18: Kolkata | F18: T20 | I18: =CONCATENATE("probability of"," ",J1," ","winning 1 and losing 1 from the next two matches against"," ",J2,":") -> probability of MI winning 1 and losing 1 from the next two matches against KKR: | O18: =IF(P15=J1,(N6*M7)+(M6*N6),(M7*N6)+(N7*M7)) -> 0.3737373737
A19: MI | B19: KKR | C19: MI | D19: 6 wickets | E19: Wankhede | F19: T20
A20: MI | B20: KKR | C20: MI | D20: 4 wickets | E20: Wankhede | F20: T20 | I20: =CONCATENATE("probability of"," ",J2," ","winning next 2 matches against"," ",J1,":") -> probability of KKR winning next 2 matches against MI: | O20: =IF(P15=J1,N6*N7,N7*N7) -> 0.1111111111
A21: KKR | B21: MI | C21: MI | D21: 9 runs | E21: Kolkata | F21: T20 | I21: =CONCATENATE("probability of"," ",J2," ","losing next 2 matches against"," ",J1,":") -> probability of KKR losing next 2 matches against MI: | O21: =IF(P15=J1,M6*M6,M7*M6) -> 0.5151515152
A22: KKR | B22: MI | C22: MI | D22: 6 wickets | E22: Bengaluru | F22: T20 | I22: =CONCATENATE("probability of"," ",J2," ","winning 1 and losing 1 from the next two matches against"," ",J1,":") -> probability of KKR winning 1 and losing 1 from the next two matches against MI: | O22: =O18 -> 0.3737373737
A23: MI | B23: KKR | C23: MI | D23: 13 runs | E23: Wankhede | F23: T20
A24: KKR | B24: MI | C24: MI | D24: 102 runs | E24: Kolkata | F24: T20
A25: KKR | B25: MI | C25: KKR | D25: 34 runs | E25: Kolkata | F25: T20
A26: MI | B26: KKR | C26: MI | D26: 9 wickets | E26: Wankhede | F26: T20
A27: KKR | B27: MI | C27: MI | D27: 49 runs | E27: Abu Dhabi | F27: T20
A28: MI | B28: KKR | C28: MI | D28: 8 wickets | E28: Abu Dhabi | F28: T20
A29: KKR | B29: MI | C29: MI | D29: 10 runs | E29: Chennai | F29: T20
A30: MI | B30: KKR | C30: KKR | D30: 7 wickets | E30: Abu Dhabi | F30: T20

Sheet MI vs PBKS
A1: Team 1 | B1: Team 2 | C1: Winner | D1: Margin | E1: Ground | F1: Scorecard | G1: Super over winner | I1: T1 | J1: MI
A2: PBKS | B2: MI | C2: PBKS | D2: 66 runs | E2: Mohali | F2: T20 | I2: T2 | J2: PBKS
A3: MI | B3: PBKS | C3: PBKS | D3: 1 run | E3: Wankhede | F3: T20
A4: PBKS | B4: MI | C4: PBKS | D4: 3 runs | E4: Durban | F4: T20 | I4: Codes | J4: Values
A5: PBKS | B5: MI | C5: MI | D5: 8 wickets | E5: Centurion | F5: T20 | I5: t1t1 | J5: 6 | L5: MATRIX | M5: MI | N5: PBKS
A6: MI | B6: PBKS | C6: MI | D6: 4 wickets | E6: Brabourne | F6: T20 | I6: t1t2 | J6: 8 | L6: MI | M6: =J5/(J5+J6+J11) -> 0.4285714286 | N6: =J6/(J5+J6+J11) -> 0.5714285714
A7: PBKS | B7: MI | C7: PBKS | D7: 6 wickets | E7: Mohali | F7: T20 | I7: t2t1 | J7: 9 | L7: PBKS | M7: =J7/(J7+J8+J12) -> 0.6923076923 | N7: =J8/(J7+J8+J12) -> 0.3076923077
A8: MI | B8: PBKS | C8: MI | D8: 23 runs | E8: Wankhede | F8: T20 | I8: t2t2 | J8: 4
A9: PBKS | B9: MI | C9: PBKS | D9: 76 runs | E9: Mohali | F9: T20 | I9: dt1 | J9: 0
A10: MI | B10: PBKS | C10: PBKS | D10: 6 wickets | E10: Wankhede | F10: T20 | I10: dt2 | J10: 0
A11: PBKS | B11: MI | C11: MI | D11: 4 wickets | E11: Mohali | F11: T20 | I11: t1d | J11: 0
A12: MI | B12: PBKS | C12: MI | D12: 4 runs | E12: Wankhede | F12: T20 | I12: t2d | J12: 0
A13: PBKS | B13: MI | C13: PBKS | D13: 50 runs | E13: Dharamsala | F13: T20 | I13: dd | J13: 0
A14: MI | B14: PBKS | C14: MI | D14: 5 wickets | E14: Wankhede | F14: T20 | I14: Total | J14: =SUM(J5:J13) -> 27
A15: PBKS | B15: MI | C15: MI | D15: 7 wickets | E15: Mohali | F15: T20 | O15: Latest match winner: | P15: MI
A16: MI | B16: PBKS | C16: PBKS | D16: 18 runs | E16: Wankhede | F16: T20 | I16: =CONCATENATE("probability of"," ",J1," ","winning next 2 matches against"," ",J2,":") -> probability of MI winning next 2 matches against PBKS: | O16: =IF(P15=J1,M6*M6,M7*M6) -> 0.1836734694
A17: PBKS | B17: MI | C17: MI | D17: 23 runs | E17: Mohali | F17: T20 | I17: =CONCATENATE("probability of"," ",J1," ","losing next 2 matches against"," ",J2,":") -> probability of MI losing next 2 matches against PBKS: | O17: =IF(P15=J1,N6*N7,N7*N7) -> 0.1758241758
A18: PBKS | B18: MI | C18: MI | D18: 25 runs | E18: Mohali | F18: T20 | I18: =CONCATENATE("probability of"," ",J1," ","winning 1 and losing 1 from the next two matches against"," ",J2,":") -> probability of MI winning 1 and losing 1 from the next two matches against PBKS: | O18: =IF(P15=J1,(N6*M7)+(M6*N6),(M7*N6)+(N7*M7)) -> 0.6405023548
A19: MI | B19: PBKS | C19: PBKS | D19: 7 wickets | E19: Visakhapatnam | F19: T20
A20: PBKS | B20: MI | C20: MI | D20: 8 wickets | E20: Indore | F20: T20 | I20: =CONCATENATE("probability of"," ",J2," ","winning next 2 matches against"," ",J1,":") -> probability of PBKS winning next 2 matches against MI: | O20: =IF(P15=J1,N6*N7,N7*N7) -> 0.1758241758
A21: MI | B21: PBKS | C21: PBKS | D21: 7 runs | E21: Wankhede | F21: T20 | I21: =CONCATENATE("probability of"," ",J2," ","losing next 2 matches against"," ",J1,":") -> probability of PBKS losing next 2 matches against MI: | O21: =IF(P15=J1,M6*M6,M7*M6) -> 0.1836734694
A22: PBKS | B22: MI | C22: MI | D22: 6 wickets | E22: Indore | F22: T20 | I22: =CONCATENATE("probability of"," ",J2," ","winning 1 and losing 1 from the next two matches against"," ",J1,":") -> probability of PBKS winning 1 and losing 1 from the next two matches against MI: | O22: =O18 -> 0.6405023548
A23: MI | B23: PBKS | C23: MI | D23: 3 runs | E23: Wankhede | F23: T20
A24: PBKS | B24: MI | C24: PBKS | D24: 8 wickets | E24: Mohali | F24: T20
A25: MI | B25: PBKS | C25: MI | D25: 3 wickets | E25: Wankhede | F25: T20
A26: PBKS | B26: MI | C26: MI | D26: 48 runs | E26: Abu Dhabi | F26: T20
A27: MI | B27: PBKS | C27: PBKS | E27: Dubai (DSC) | F27: T20 | G27: PBKS
A28: PBKS | B28: MI | C28: PBKS | D28: 9 wickets | E28: Chennai | F28: T20
A29: MI | B29: PBKS | C29: MI | D29: 6 wickets | E29: Abu Dhabi | F29: T20

Sheet RCB vs CSK
A1: Team 1 | B1: Team 2 | C1: Winner | D1: Margin | E1: Ground | F1: Scorecard | I1: T1 | J1: RCB
A2: RCB | B2: CSK | C2: CSK | D2: 13 runs | E2: Bengaluru | F2: T20 | I2: T2 | J2: CSK
A3: CSK | B3: RCB | C3: RCB | D3: 14 runs | E3: Chennai | F3: T20
A4: RCB | B4: CSK | C4: CSK | D4: 92 runs | E4: Port Elizabeth | F4: T20 | I4: Codes | J4: Values
A5: RCB | B5: CSK | C5: RCB | D5: 2 wickets | E5: Durban | F5: T20 | I5: t1t1 | J5: 4 | L5: MATRIX | M5: RCB | N5: CSK | O5: D
A6: CSK | B6: RCB | C6: RCB | D6: 6 wickets | E6: Johannesburg | F6: T20 | I6: t1t2 | J6: 5 | L6: RCB | M6: =J5/(J5+J6+J11) -> 0.4444444444 | N6: =J6/(J5+J6+J11) -> 0.5555555556 | O6: =J11/(J11+J5+J6) -> 0
A7: RCB | B7: CSK | C7: RCB | D7: 36 runs | E7: Bengaluru | F7: T20 | I7: t2t1 | J7: 5 | L7: CSK | M7: =J7/(J7+J8+J12) -> 0.2941176471 | N7: =J8/(J7+J8+J12) -> 0.6470588235 | O7: =J12/(J12+J7+J8) -> 0.05882352941
A8: CSK | B8: RCB | C8: CSK | D8: 5 wickets | E8: Chennai | F8: T20 | I8: t2t2 | J8: 11 | L8: D | M8: =J9/(J9+J10+J13) -> 0 | N8: =J10/(J9+J10+J13) -> 1 | O8: =J13/(J13+J9+J10) -> 0
A9: CSK | B9: RCB | C9: CSK | D9: 21 runs | E9: Chennai | F9: T20 | I9: dt1 | J9: 0
A10: RCB | B10: CSK | C10: RCB | D10: 8 wickets | E10: Bengaluru | F10: T20 | I10: dt2 | J10: 1
A11: CSK | B11: RCB | C11: CSK | D11: 6 wickets | E11: Wankhede | F11: T20 | I11: t1d | J11: 0
A12: CSK | B12: RCB | C12: CSK | D12: 58 runs | E12: Chennai | F12: T20 | I12: t2d | J12: 1
A13: CSK | B13: RCB | C13: CSK | D13: 5 wickets | E13: Chennai | F13: T20 | I13: dd | J13: 0
A14: RCB | B14: CSK | C14: D | E14: Bengaluru | F14: T20 | I14: Total | J14: =SUM(J5:J13) -> 27
A15: CSK | B15: RCB | C15: CSK | D15: 4 wickets | E15: Chennai | F15: T20 | O15: Latest match winner: | P15: CSK
A16: RCB | B16: CSK | C16: RCB | D16: 24 runs | E16: Bengaluru | F16: T20 | I16: =CONCATENATE("probability of"," ",J1," ","winning next 2 matches against"," ",J2,":") -> probability of RCB winning next 2 matches against CSK: | O16: =IF(P15=J1,M6*M6,M7*M6) -> 0.1307189542
A17: CSK | B17: RCB | C17: RCB | D17: 5 wickets | E17: Ranchi | F17: T20 | I17: =CONCATENATE("probability of"," ",J1," ","losing next 2 matches against"," ",J2,":") -> probability of RCB losing next 2 matches against CSK: | O17: =IF(P15=J1,N6*N7,N7*N7) -> 0.4186851211
A18: RCB | B18: CSK | C18: CSK | D18: 8 wickets | E18: Bengaluru | F18: T20 | I18: =CONCATENATE("probability of"," ",J1," ","winning 1 and losing 1 from the next two matches against"," ",J2,":") -> probability of RCB winning 1 and losing 1 from the next two matches against CSK: | O18: =IF(P15=J1,(N6*M7)+(M6*N6),(M7*N6)+(N7*M7)) -> 0.3537101115
A19: RCB | B19: CSK | C19: CSK | D19: 27 runs | E19: Bengaluru | F19: T20
A20: CSK | B20: RCB | C20: CSK | D20: 24 runs | E20: Chennai | F20: T20 | I20: =CONCATENATE("probability of"," ",J2," ","winning next 2 matches against"," ",J1,":") -> probability of CSK winning next 2 matches against RCB: | O20: =IF(P15=J1,N6*N7,N7*N7) -> 0.4186851211
A21: CSK | B21: RCB | C21: CSK | D21: 3 wickets | E21: Ranchi | F21: T20 | I21: =CONCATENATE("probability of"," ",J2," ","losing next 2 matches against"," ",J1,":") -> probability of CSK losing next 2 matches against RCB: | O21: =IF(P15=J1,M6*M6,M7*M6) -> 0.1307189542
A22: RCB | B22: CSK | C22: CSK | D22: 5 wickets | E22: Bengaluru | F22: T20 | I22: =CONCATENATE("probability of"," ",J2," ","winning 1 and losing 1 from the next two matches against"," ",J1,":") -> probability of CSK winning 1 and losing 1 from the next two matches against RCB: | O22: =O18 -> 0.3537101115
A23: CSK | B23: RCB | C23: CSK | D23: 6 wickets | E23: Pune | F23: T20
A24: CSK | B24: RCB | C24: CSK | D24: 7 wickets | E24: Chennai | F24: T20
A25: RCB | B25: CSK | C25: RCB | D25: 1 run | E25: Bengaluru | F25: T20
A26: CSK | B26: RCB | C26: RCB | D26: 37 runs | E26: Dubai (DSC) | F26: T20
A27: RCB | B27: CSK | C27: CSK | D27: 8 wickets | E27: Dubai (DSC) | F27: T20
A28: CSK | B28: RCB | C28: CSK | D28: 69 runs | E28: Wankhede | F28: T20
A29: RCB | B29: CSK | C29: CSK | D29: 6 wickets | E29: Sharjah | F29: T20

Sheet RCB vs RR
A1: Team 1 | B1: Team 2 | C1: Winner | D1: Margin | E1: Ground | F1: Scorecard | G1: Super over winner | I1: T1 | J1: RCB
A2: RCB | B2: RR | C2: RR | D2: 7 wickets | E2: Bengaluru | F2: T20 | I2: T2 | J2: RR
A3: RR | B3: RCB | C3: RR | D3: 65 runs | E3: Jaipur | F3: T20
A4: RCB | B4: RR | C4: RCB | D4: 75 runs | E4: Cape Town | F4: T20 | I4: Column1 | J4: Column2
A5: RCB | B5: RR | C5: RR | D5: 7 wickets | E5: Centurion | F5: T20 | I5: t1t1 | J5: 5 | L5: MATRIX | M5: RCB | N5: RR | O5: D
A6: RCB | B6: RR | C6: RCB | D6: 10 wickets | E6: Bengaluru | F6: T20 | I6: t1t2 | J6: 4 | L6: RCB | M6: =J5/(J5+J6+J11) -> 0.4545454545 | N6: =J6/(J5+J6+J11) -> 0.3636363636 | O6: =J11/(J11+J5+J6) -> 0.1818181818
A7: RR | B7: RCB | C7: RCB | D7: 5 wickets | E7: Jaipur | F7: T20 | I7: t2t1 | J7: 4 | L7: RR | M7: =J7/(J7+J8+J12) -> 0.4 | N7: =J8/(J7+J8+J12) -> 0.5 | O7: =J12/(J12+J7+J8) -> 0.1
A8: RCB | B8: RR | C8: D | E8: Bengaluru | F8: T20 | I8: t2t2 | J8: 5 | L8: D | M8: =J9/(J9+J10+J13) -> 1 | N8: =J10/(J9+J10+J13) -> 0 | O8: =J13/(J13+J9+J10) -> 0
A9: RR | B9: RCB | C9: RCB | D9: 9 wickets | E9: Jaipur | F9: T20 | I9: dt1 | J9: 3
A10: RCB | B10: RR | C10: RR | D10: 59 runs | E10: Bengaluru | F10: T20 | I10: dt2 | J10: 0
A11: RR | B11: RCB | C11: RCB | D11: 46 runs | E11: Jaipur | F11: T20 | I11: t1d | J11: 2
A12: RCB | B12: RR | C12: RCB | D12: 7 wickets | E12: Bengaluru | F12: T20 | I12: t2d | J12: 1
A13: RR | B13: RCB | C13: RR | D13: 4 wickets | E13: Jaipur | F13: T20 | I13: dd | J13: 0
A14: RR | B14: RCB | C14: RR | D14: 6 wickets | E14: Abu Dhabi | F14: T20 | I14: Total | J14: =SUM(J5:J13) -> 24
A15: RCB | B15: RR | C15: RR | D15: 5 wickets | E15: Bengaluru | F15: T20 | O15: Latest match winner: | P15: RCB
A16: RR | B16: RCB | C16: RCB | D16: 9 wickets | E16: Ahmedabad | F16: T20 | I16: =CONCATENATE("probability of"," ",J1," ","winning next 2 matches against"," ",J2,":") -> probability of RCB winning next 2 matches against RR: | O16: =IF(P15=J1,M6*M6,M7*M6) -> 0.2066115702
A17: RCB | B17: RR | C17: D | E17: Bengaluru | F17: T20 | I17: =CONCATENATE("probability of"," ",J1," ","losing next 2 matches against"," ",J2,":") -> probability of RCB losing next 2 matches against RR: | O17: =IF(P15=J1,N6*N7,N7*N7) -> 0.1818181818
A18: RR | B18: RCB | C18: RCB | D18: 71 runs | E18: Pune | F18: T20 | I18: =CONCATENATE("probability of"," ",J1," ","winning 1 and losing 1 from the next two matches against"," ",J2,":") -> probability of RCB winning 1 and losing 1 from the next two matches against RR: | O18: =IF(P15=J1,(N6*M7)+(M6*N6),(M7*N6)+(N7*M7)) -> 0.3107438017
A19: RCB | B19: RR | C19: RR | D19: 19 runs | E19: Bengaluru | F19: T20
A20: RR | B20: RCB | C20: RR | D20: 30 runs | E20: Jaipur | F20: T20 | I20: =CONCATENATE("probability of"," ",J2," ","winning next 2 matches against"," ",J1,":") -> probability of RR winning next 2 matches against RCB: | O20: =IF(P15=J1,N6*N7,N7*N7) -> 0.1818181818
A21: RR | B21: RCB | C21: RR | D21: 7 wickets | E21: Jaipur | F21: T20 | I21: =CONCATENATE("probability of"," ",J2," ","losing next 2 matches against"," ",J1,":") -> probability of RR losing next 2 matches against RCB: | O21: =IF(P15=J1,M6*M6,M7*M6) -> 0.2066115702
A22: RCB | B22: RR | C22: D | E22: Bengaluru | F22: T20 | I22: =CONCATENATE("probability of"," ",J2," ","winning 1 and losing 1 from the next two matches against"," ",J1,":") -> probability of RR winning 1 and losing 1 from the next two matches against RCB: | O22: =O18 -> 0.3107438017
A23: RCB | B23: RR | C23: RCB | D23: 8 wickets | E23: Abu Dhabi | F23: T20
A24: RR | B24: RCB | C24: RCB | D24: 7 wickets | E24: Dubai (DSC) | F24: T20
A25: RCB | B25: RR | C25: RCB | D25: 10 wickets | E25: Wankhede | F25: T20
A26: RR | B26: RCB | C26: RCB | D26: 7 wickets | E26: Dubai (DSC) | F26: T20

Sheet RCB vs SRH
A1: Team 1 | B1: Team 2 | C1: Winner | D1: Margin | E1: Ground | F1: Scorecard | G1: Super over winner | I1: T1 | J1: RCB
A2: RCB | B2: SRH | C2: RCB | D2: 3 runs | E2: Bengaluru | F2: T20 | I2: T2 | J2: SRH
A3: SRH | B3: RCB | C3: RCB | D3: 5 wickets | E3: Hyderabad (Deccan) | F3: T20
A4: RCB | B4: SRH | C4: SRH | D4: 24 runs | E4: Cape Town | F4: T20 | I4: Codes | J4: Values
A5: RCB | B5: SRH | C5: RCB | D5: 12 runs | E5: Centurion | F5: T20 | I5: t1t1 | J5: 4 | L5: MATRIX | M5: RCB | N5: SRH | O5: D
A6: SRH | B6: RCB | C6: SRH | D6: 6 runs | E6: Johannesburg | F6: T20 | I6: t1t2 | J6: 9 | L6: RCB | M6: =J5/(J5+J6+J11) -> 0.3076923077 | N6: =J6/(J5+J6+J11) -> 0.6923076923 | O6: =J11/(J11+J5+J6) -> 0
A7: RCB | B7: SRH | C7: SRH | D7: 7 wickets | E7: Bengaluru | F7: T20 | I7: t2t1 | J7: 8 | L7: SRH | M7: =J7/(J7+J8+J12) -> 0.5 | N7: =J8/(J7+J8+J12) -> 0.4375 | O7: =J12/(J12+J7+J8) -> 0.0625
A8: SRH | B8: RCB | C8: SRH | D8: 13 runs | E8: Nagpur | F8: T20 | I8: t2t2 | J8: 7 | L8: D | M8: =J9/(J9+J10+J13) -> 0 | N8: =J10/(J9+J10+J13) -> 1 | O8: =J13/(J13+J9+J10) -> 0
A9: SRH | B9: RCB | C9: RCB | D9: 9 wickets | E9: DY Patil | F9: T20 | I9: dt1 | J9: 0
A10: SRH | B10: RCB | C10: SRH | D10: 33 runs | E10: Hyderabad (Deccan) | F10: T20 | I10: dt2 | J10: 1
A11: RCB | B11: SRH | C11: RCB | D11: 5 wickets | E11: Bengaluru | F11: T20 | I11: t1d | J11: 0
A12: SRH | B12: RCB | C12: SRH | D12: 9 runs | E12: Hyderabad (Deccan) | F12: T20 | I12: t2d | J12: 1
A13: SRH | B13: RCB | C13: SRH | E13: Hyderabad (Deccan) | F13: T20 | G13: SRH | I13: dd | J13: 0
A14: RCB | B14: SRH | C14: RCB | D14: 7 wickets | E14: Bengaluru | F14: T20 | I14: Total | J14: =SUM(J5:J13) -> 30
A15: RCB | B15: SRH | C15: RCB | D15: 4 wickets | E15: Bengaluru | F15: T20 | O15: Latest match winner: | P15: SRH
A16: SRH | B16: RCB | C16: SRH | D16: 7 wickets | E16: Hyderabad (Deccan) | F16: T20 | I16: =CONCATENATE("probability of"," ",J1," ","winning next 2 matches against"," ",J2,":") -> probability of RCB winning next 2 matches against SRH: | O16: =IF(P15=J1,M6*M6,M7*M6) -> 0.1538461538
A17: RCB | B17: SRH | C17: SRH | D17: 8 wickets | E17: Bengaluru | F17: T20 | I17: =CONCATENATE("probability of"," ",J1," ","losing next 2 matches against"," ",J2,":") -> probability of RCB losing next 2 matches against SRH: | O17: =IF(P15=J1,N6*N7,N7*N7) -> 0.19140625
A18: SRH | B18: RCB | C18: RCB | D18: 6 wickets | E18: Hyderabad (Deccan) | F18: T20 | I18: =CONCATENATE("probability of"," ",J1," ","winning 1 and losing 1 from the next two matches against"," ",J2,":") -> probability of RCB winning 1 and losing 1 from the next two matches against SRH: | O18: =IF(P15=J1,(N6*M7)+(M6*N6),(M7*N6)+(N7*M7)) -> 0.5649038462
A19: RCB | B19: SRH | C19: RCB | D19: 45 runs | E19: Bengaluru | F19: T20
A20: SRH | B20: RCB | C20: SRH | D20: 15 runs | E20: Hyderabad (Deccan) | F20: T20 | I20: =CONCATENATE("probability of"," ",J2," ","winning next 2 matches against"," ",J1,":") -> probability of SRH winning next 2 matches against RCB: | O20: =IF(P15=J1,N6*N7,N7*N7) -> 0.19140625
A21: RCB | B21: SRH | C21: SRH | D21: 8 runs | E21: Bengaluru | F21: T20 | I21: =CONCATENATE("probability of"," ",J2," ","losing next 2 matches against"," ",J1,":") -> probability of SRH losing next 2 matches against RCB: | O21: =IF(P15=J1,M6*M6,M7*M6) -> 0.1538461538
A22: SRH | B22: RCB | C22: SRH | D22: 35 runs | E22: Hyderabad (Deccan) | F22: T20 | I22: =CONCATENATE("probability of"," ",J2," ","winning 1 and losing 1 from the next two matches against"," ",J1,":") -> probability of SRH winning 1 and losing 1 from the next two matches against RCB: | O22: =O18 -> 0.5649038462
A23: RCB | B23: SRH | C23: D | E23: Bengaluru | F23: T20
A24: SRH | B24: RCB | C24: SRH | D24: 5 runs | E24: Hyderabad (Deccan) | F24: T20
A25: RCB | B25: SRH | C25: RCB | D25: 14 runs | E25: Bengaluru | F25: T20
A26: SRH | B26: RCB | C26: SRH | D26: 118 runs | E26: Hyderabad (Deccan) | F26: T20
A27: RCB | B27: SRH | C27: RCB | D27: 4 wickets | E27: Bengaluru | F27: T20
A28: SRH | B28: RCB | C28: RCB | D28: 10 runs | E28: Dubai (DSC) | F28: T20
A29: RCB | B29: SRH | C29: SRH | D29: 5 wickets | E29: Sharjah | F29: T20
A30: RCB | B30: SRH | C30: SRH | D30: 6 wickets | E30: Abu Dhabi | F30: T20
A31: SRH | B31: RCB | C31: RCB | D31: 6 runs | E31: Chennai | F31: T20
A32: RCB | B32: SRH | C32: SRH | D32: 4 runs | E32: Abu Dhabi | F32: T20

Sheet RCB vs PBKS
A1: Team 1 | B1: Team 2 | C1: Winner | D1: Margin | E1: Ground | F1: Scorecard | G1: Super over winner | I1: T1 | J1: RCB
A2: RCB | B2: PBKS | C2: PBKS | D2: 6 wickets | E2: Bengaluru | F2: T20 | I2: T2 | J2: PBKS
A3: PBKS | B3: RCB | C3: PBKS | D3: 9 wickets | E3: Mohali | F3: T20
A4: RCB | B4: PBKS | C4: PBKS | D4: 7 wickets | E4: Durban | F4: T20 | I4: Codes | J4: Values
A5: RCB | B5: PBKS | C5: RCB | D5: 8 runs | E5: Durban | F5: T20 | I5: t1t1 | J5: 7 | L5: MATRIX | M5: RCB | N5: PBKS
A6: RCB | B6: PBKS | C6: RCB | D6: 8 wickets | E6: Bengaluru | F6: T20 | I6: t1t2 | J6: 5 | L6: RCB | M6: =J5/(J5+J6+J11) -> 0.5833333333 | N6: =J6/(J5+J6+J11) -> 0.4166666667
A7: PBKS | B7: RCB | C7: RCB | D7: 6 wickets | E7: Mohali | F7: T20 | I7: t2t1 | J7: 6 | L7: PBKS | M7: =J7/(J7+J8+J12) -> 0.4 | N7: =J8/(J7+J8+J12) -> 0.6
A8: RCB | B8: PBKS | C8: RCB | D8: 85 runs | E8: Bengaluru | F8: T20 | I8: t2t2 | J8: 9
A9: PBKS | B9: RCB | C9: PBKS | D9: 111 runs | E9: Dharamsala | F9: T20 | I9: dt1 | J9: 0
A10: PBKS | B10: RCB | C10: RCB | D10: 5 wickets | E10: Mohali | F10: T20 | I10: dt2 | J10: 0
A11: RCB | B11: PBKS | C11: PBKS | D11: 4 wickets | E11: Bengaluru | F11: T20 | I11: t1d | J11: 0
A12: PBKS | B12: RCB | C12: PBKS | D12: 6 wickets | E12: Mohali | F12: T20 | I12: t2d | J12: 0
A13: RCB | B13: PBKS | C13: PBKS | D13: 7 wickets | E13: Bengaluru | F13: T20 | I13: dd | J13: 0
A14: PBKS | B14: RCB | C14: PBKS | D14: 5 wickets | E14: Dubai (DSC) | F14: T20 | I14: Total | J14: =SUM(J5:J13) -> 27
A15: RCB | B15: PBKS | C15: PBKS | D15: 32 runs | E15: Bengaluru | F15: T20 | O15: Latest match winner: | P15: RCB
A16: RCB | B16: PBKS | C16: RCB | D16: 138 runs | E16: Bengaluru | F16: T20 | I16: =CONCATENATE("probability of"," ",J1," ","winning next 2 matches against"," ",J2,":") -> probability of RCB winning next 2 matches against PBKS: | O16: =IF(P15=J1,M6*M6,M7*M6) -> 0.3402777778
A17: PBKS | B17: RCB | C17: PBKS | D17: 22 runs | E17: Mohali | F17: T20 | I17: =CONCATENATE("probability of"," ",J1," ","losing next 2 matches against"," ",J2,":") -> probability of RCB losing next 2 matches against PBKS: | O17: =IF(P15=J1,N6*N7,N7*N7) -> 0.25
A18: PBKS | B18: RCB | C18: RCB | D18: 1 run | E18: Mohali | F18: T20 | I18: =CONCATENATE("probability of"," ",J1," ","winning 1 and losing 1 from the next two matches against"," ",J2,":") -> probability of RCB winning 1 and losing 1 from the next two matches against PBKS: | O18: =IF(P15=J1,(N6*M7)+(M6*N6),(M7*N6)+(N7*M7)) -> 0.4097222222
A19: RCB | B19: PBKS | C19: RCB | D19: 82 runs | E19: Bengaluru | F19: T20
A20: PBKS | B20: RCB | C20: PBKS | D20: 8 wickets | E20: Indore | F20: T20 | I20: =CONCATENATE("probability of"," ",J2," ","winning next 2 matches against"," ",J1,":") -> probability of PBKS winning next 2 matches against RCB: | O20: =IF(P15=J1,N6*N7,N7*N7) -> 0.25
A21: RCB | B21: PBKS | C21: PBKS | D21: 19 runs | E21: Bengaluru | F21: T20 | I21: =CONCATENATE("probability of"," ",J2," ","losing next 2 matches against"," ",J1,":") -> probability of PBKS losing next 2 matches against RCB: | O21: =IF(P15=J1,M6*M6,M7*M6) -> 0.3402777778
A22: RCB | B22: PBKS | C22: RCB | D22: 4 wickets | E22: Bengaluru | F22: T20 | I22: =CONCATENATE("probability of"," ",J2," ","winning 1 and losing 1 from the next two matches against"," ",J1,":") -> probability of PBKS winning 1 and losing 1 from the next two matches against RCB: | O22: =O18 -> 0.4097222222
A23: PBKS | B23: RCB | C23: RCB | D23: 10 wickets | E23: Indore | F23: T20
A24: PBKS | B24: RCB | C24: RCB | D24: 8 wickets | E24: Mohali | F24: T20
A25: RCB | B25: PBKS | C25: RCB | D25: 17 runs | E25: Bengaluru | F25: T20
A26: PBKS | B26: RCB | C26: PBKS | D26: 97 runs | E26: Dubai (DSC) | F26: T20
A27: RCB | B27: PBKS | C27: PBKS | D27: 8 wickets | E27: Sharjah | F27: T20
A28: PBKS | B28: RCB | C28: PBKS | D28: 34 runs | E28: Ahmedabad | F28: T20
A29: RCB | B29: PBKS | C29: RCB | D29: 6 runs | E29: Sharjah | F29: T20

Sheet RCB vs KKR
A1: Team 1 | B1: Team 2 | C1: Winner | D1: Margin | E1: Ground | F1: Scorecard | G1: Super over winner | I1: T1 | J1: RCB
A2: RCB | B2: KKR | C2: KKR | D2: 140 runs | E2: Bengaluru | F2: T20 | I2: T2 | J2: KKR
A3: KKR | B3: RCB | C3: KKR | D3: 5 runs | E3: Kolkata | F3: T20
A4: RCB | B4: KKR | C4: RCB | D4: 5 wickets | E4: Durban | F4: T20 | I4: Codes | J4: Values
A5: RCB | B5: KKR | C5: RCB | D5: 6 wickets | E5: Centurion | F5: T20 | I5: t1t1 | J5: 7 | L5: MATRIX | M5: RCB | N5: KKR
A6: KKR | B6: RCB | C6: KKR | D6: 7 wickets | E6: Kolkata | F6: T20 | I6: t1t2 | J6: 6 | L6: RCB | M6: =J5/(J5+J6+J11) -> 0.5384615385 | N6: =J6/(J5+J6+J11) -> 0.4615384615
A7: RCB | B7: KKR | C7: RCB | D7: 7 wickets | E7: Bengaluru | F7: T20 | I7: t2t1 | J7: 6 | L7: KKR | M7: =J7/(J7+J8+J12) -> 0.4 | N7: =J8/(J7+J8+J12) -> 0.6
A8: KKR | B8: RCB | C8: RCB | D8: 9 wickets | E8: Kolkata | F8: T20 | I8: t2t2 | J8: 9
A9: RCB | B9: KKR | C9: RCB | D9: 4 wickets | E9: Bengaluru | F9: T20 | I9: dt1 | J9: 0
A10: RCB | B10: KKR | C10: KKR | D10: 42 runs | E10: Bengaluru | F10: T20 | I10: dt2 | J10: 0
A11: KKR | B11: RCB | C11: KKR | D11: 47 runs | E11: Kolkata | F11: T20 | I11: t1d | J11: 0
A12: RCB | B12: KKR | C12: RCB | D12: 8 wickets | E12: Bengaluru | F12: T20 | I12: t2d | J12: 0
A13: KKR | B13: RCB | C13: KKR | D13: 5 wickets | E13: Ranchi | F13: T20 | I13: dd | J13: 0
A14: RCB | B14: KKR | C14: KKR | D14: 2 runs | E14: Sharjah | F14: T20 | I14: Total | J14: =SUM(J5:J13) -> 28
A15: KKR | B15: RCB | C15: KKR | D15: 30 runs | E15: Kolkata | F15: T20 | O15: Latest match winner: | P15: KKR
A16: KKR | B16: RCB | C16: RCB | D16: 3 wickets | E16: Kolkata | F16: T20 | I16: =CONCATENATE("probability of"," ",J1," ","winning next 2 matches against"," ",J2,":") -> probability of RCB winning next 2 matches against KKR: | O16: =IF(P15=J1,M6*M6,M7*M6) -> 0.2153846154
A17: RCB | B17: KKR | C17: RCB | D17: 7 wickets | E17: Bengaluru | F17: T20 | I17: =CONCATENATE("probability of"," ",J1," ","losing next 2 matches against"," ",J2,":") -> probability of RCB losing next 2 matches against KKR: | O17: =IF(P15=J1,N6*N7,N7*N7) -> 0.36
A18: RCB | B18: KKR | C18: KKR | D18: 5 wickets | E18: Bengaluru | F18: T20 | I18: =CONCATENATE("probability of"," ",J1," ","winning 1 and losing 1 from the next two matches against"," ",J2,":") -> probability of RCB winning 1 and losing 1 from the next two matches against KKR: | O18: =IF(P15=J1,(N6*M7)+(M6*N6),(M7*N6)+(N7*M7)) -> 0.4246153846
A19: KKR | B19: RCB | C19: RCB | D19: 9 wickets | E19: Kolkata | F19: T20
A20: KKR | B20: RCB | C20: KKR | D20: 82 runs | E20: Kolkata | F20: T20 | I20: =CONCATENATE("probability of"," ",J2," ","winning next 2 matches against"," ",J1,":") -> probability of KKR winning next 2 matches against RCB: | O20: =IF(P15=J1,N6*N7,N7*N7) -> 0.36
A21: RCB | B21: KKR | C21: KKR | D21: 6 wickets | E21: Bengaluru | F21: T20 | I21: =CONCATENATE("probability of"," ",J2," ","losing next 2 matches against"," ",J1,":") -> probability of KKR losing next 2 matches against RCB: | O21: =IF(P15=J1,M6*M6,M7*M6) -> 0.2153846154
A22: KKR | B22: RCB | C22: KKR | D22: 4 wickets | E22: Kolkata | F22: T20 | I22: =CONCATENATE("probability of"," ",J2," ","winning 1 and losing 1 from the next two matches against"," ",J1,":") -> probability of KKR winning 1 and losing 1 from the next two matches against RCB: | O22: =O18 -> 0.4246153846
A23: RCB | B23: KKR | C23: KKR | D23: 6 wickets | E23: Bengaluru | F23: T20
A24: RCB | B24: KKR | C24: KKR | D24: 5 wickets | E24: Bengaluru | F24: T20
A25: KKR | B25: RCB | C25: RCB | D25: 10 runs | E25: Kolkata | F25: T20
A26: RCB | B26: KKR | C26: RCB | D26: 82 runs | E26: Sharjah | F26: T20
A27: KKR | B27: RCB | C27: RCB | D27: 8 wickets | E27: Abu Dhabi | F27: T20
A28: RCB | B28: KKR | C28: RCB | D28: 38 runs | E28: Chennai | F28: T20
A29: KKR | B29: RCB | C29: KKR | D29: 9 wickets | E29: Abu Dhabi | F29: T20
A30: RCB | B30: KKR | C30: KKR | D30: 4 wickets | E30: Sharjah | F30: T20

Sheet RCB vs DC
A1: Team 1 | B1: Team 2 | C1: Winner | D1: Margin | E1: Ground | F1: Scorecard | G1: Super over winner | I1: T1 | J1: RCB
A2: DC | B2: RCB | C2: DC | D2: 10 runs | E2: Delhi | F2: T20 | I2: T2 | J2: DC
A3: RCB | B3: DC | C3: DC | D3: 5 wickets | E3: Bengaluru | F3: T20
A4: RCB | B4: DC | C4: DC | D4: 6 wickets | E4: Port Elizabeth | F4: T20 | I4: Codes | J4: Values
A5: RCB | B5: DC | C5: RCB | D5: 7 wickets | E5: Johannesburg | F5: T20 | I5: t1t1 | J5: 12 | L5: MATRIX | M5: RCB | N5: DC | O5: D
A6: RCB | B6: DC | C6: DC | D6: 17 runs | E6: Bengaluru | F6: T20 | I6: t1t2 | J6: 2 | L6: RCB | M6: =J5/(J5+J6+J11) -> 0.8 | N6: =J6/(J5+J6+J11) -> 0.1333333333 | O6: =J11/(J11+J5+J6) -> 0.06666666667
A7: DC | B7: RCB | C7: DC | D7: 37 runs | E7: Delhi | F7: T20 | I7: t2t1 | J7: 4 | L7: DC | M7: =J7/(J7+J8+J12) -> 0.4 | N7: =J8/(J7+J8+J12) -> 0.6 | O7: =J12/(J12+J7+J8) -> 0
A8: DC | B8: RCB | C8: RCB | D8: 3 wickets | E8: Delhi | F8: T20 | I8: t2t2 | J8: 6 | L8: D | M8: =J9/(J9+J10+J13) -> 0 | N8: =J10/(J9+J10+J13) -> 1 | O8: =J13/(J13+J9+J10) -> 0
A9: RCB | B9: DC | C9: RCB | D9: 20 runs | E9: Bengaluru | F9: T20 | I9: dt1 | J9: 0
A10: DC | B10: RCB | C10: RCB | D10: 21 runs | E10: Delhi | F10: T20 | I10: dt2 | J10: 1
A11: RCB | B11: DC | C11: RCB | E11: Bengaluru | F11: T20 | G11: RCB | I11: t1d | J11: 1
A12: DC | B12: RCB | C12: RCB | D12: 4 runs | E12: Delhi | F12: T20 | I12: t2d | J12: 0
A13: DC | B13: RCB | C13: RCB | D13: 8 wickets | E13: Sharjah | F13: T20 | I13: dd | J13: 0
A14: RCB | B14: DC | C14: RCB | D14: 16 runs | E14: Bengaluru | F14: T20 | I14: Total | J14: =SUM(J5:J13) -> 26
A15: DC | B15: RCB | C15: RCB | D15: 10 wickets | E15: Delhi | F15: T20 | O15: Latest match winner: | P15: RCB
A16: RCB | B16: DC | C16: D | E16: Bengaluru | F16: T20 | I16: =CONCATENATE("probability of"," ",J1," ","winning next 2 matches against"," ",J2,":") -> probability of RCB winning next 2 matches against DC: | O16: =IF(P15=J1,M6*M6,M7*M6) -> 0.64
A17: RCB | B17: DC | C17: DC | D17: 7 wickets | E17: Bengaluru | F17: T20 | I17: =CONCATENATE("probability of"," ",J1," ","losing next 2 matches against"," ",J2,":") -> probability of RCB losing next 2 matches against DC: | O17: =IF(P15=J1,N6*N7,N7*N7) -> 0.08
A18: DC | B18: RCB | C18: RCB | D18: 6 wickets | E18: Raipur | F18: T20 | I18: =CONCATENATE("probability of"," ",J1," ","winning 1 and losing 1 from the next two matches against"," ",J2,":") -> probability of RCB winning 1 and losing 1 from the next two matches against DC: | O18: =IF(P15=J1,(N6*M7)+(M6*N6),(M7*N6)+(N7*M7)) -> 0.16
A19: RCB | B19: DC | C19: RCB | D19: 15 runs | E19: Bengaluru | F19: T20
A20: DC | B20: RCB | C20: RCB | D20: 10 runs | E20: Delhi | F20: T20 | I20: =CONCATENATE("probability of"," ",J2," ","winning next 2 matches against"," ",J1,":") -> probability of DC winning next 2 matches against RCB: | O20: =IF(P15=J1,N6*N7,N7*N7) -> 0.08
A21: RCB | B21: DC | C21: RCB | D21: 6 wickets | E21: Bengaluru | F21: T20 | I21: =CONCATENATE("probability of"," ",J2," ","losing next 2 matches against"," ",J1,":") -> probability of DC losing next 2 matches against RCB: | O21: =IF(P15=J1,M6*M6,M7*M6) -> 0.64
A22: DC | B22: RCB | C22: RCB | D22: 5 wickets | E22: Delhi | F22: T20 | I22: =CONCATENATE("probability of"," ",J2," ","winning 1 and losing 1 from the next two matches against"," ",J1,":") -> probability of DC winning 1 and losing 1 from the next two matches against RCB: | O22: =O18 -> 0.16
A23: RCB | B23: DC | C23: DC | D23: 4 wickets | E23: Bengaluru | F23: T20
A24: DC | B24: RCB | C24: DC | D24: 16 runs | E24: Delhi | F24: T20
A25: RCB | B25: DC | C25: DC | D25: 59 runs | E25: Dubai (DSC) | F25: T20
A26: DC | B26: RCB | C26: DC | D26: 6 wickets | E26: Abu Dhabi | F26: T20
A27: DC | B27: RCB | C27: RCB | D27: 1 run | E27: Ahmedabad | F27: T20
A28: RCB | B28: DC | C28: RCB | D28: 7 wickets | E28: Dubai (DSC) | F28: T20

Sheet RR VS SRH
A1: Team 1 | B1: Team 2 | C1: Winner | D1: Margin | E1: Ground | F1: Scorecard | G1: Super over winner | I1: T1 | J1: RR
A2: SRH | B2: RR | C2: RR | D2: 3 wickets | E2: Hyderabad (Deccan) | F2: T20 | I2: T2 | J2: SRH
A3: RR | B3: SRH | C3: RR | D3: 8 wickets | E3: Jaipur | F3: T20
A4: SRH | B4: RR | C4: RR | D4: 3 wickets | E4: Port Elizabeth | F4: T20 | I4: Codes | J4: Values
A5: SRH | B5: RR | C5: SRH | D5: 53 runs | E5: Kimberley | F5: T20 | I5: t1t1 | J5: 7 | L5: MATRIX | M5: RR | N5: SRH
A6: RR | B6: SRH | C6: RR | D6: 8 wickets | E6: Ahmedabad | F6: T20 | I6: t1t2 | J6: 7 | L6: RR | M6: =J5/(J5+J6+J11) -> 0.5 | N6: =J6/(J5+J6+J11) -> 0.5
A7: SRH | B7: RR | C7: RR | D7: 2 runs | E7: Nagpur | F7: T20 | I7: t2t1 | J7: 6 | L7: SRH | M7: =J7/(J7+J8+J12) -> 0.6666666667 | N7: =J8/(J7+J8+J12) -> 0.3333333333
A8: SRH | B8: RR | C8: RR | D8: 8 wickets | E8: Hyderabad (Deccan) | F8: T20 | I8: t2t2 | J8: 3
A9: RR | B9: SRH | C9: RR | D9: 5 wickets | E9: Jaipur | F9: T20 | I9: dt1 | J9: 0
A10: SRH | B10: RR | C10: SRH | D10: 5 wickets | E10: Hyderabad (Deccan) | F10: T20 | I10: dt2 | J10: 0
A11: RR | B11: SRH | C11: RR | D11: 8 wickets | E11: Jaipur | F11: T20 | I11: t1d | J11: 0
A12: SRH | B12: RR | C12: SRH | D12: 23 runs | E12: Hyderabad (Deccan) | F12: T20 | I12: t2d | J12: 0
A13: RR | B13: SRH | C13: RR | D13: 4 wickets | E13: Delhi | F13: T20 | I13: dd | J13: 0
A14: SRH | B14: RR | C14: RR | D14: 4 wickets | E14: Abu Dhabi | F14: T20 | I14: Total | J14: =SUM(J5:J13) -> 23
A15: RR | B15: SRH | C15: SRH | D15: 32 runs | E15: Ahmedabad | F15: T20 | O15: Latest match winner: | P15: SRH
A16: SRH | B16: RR | C16: RR | D16: 6 wickets | E16: Visakhapatnam | F16: T20 | I16: =CONCATENATE("probability of"," ",J1," ","winning next 2 matches against"," ",J2,":") -> probability of RR winning next 2 matches against SRH: | O16: =IF(P15=J1,M6*M6,M7*M6) -> 0.3333333333
A17: RR | B17: SRH | C17: SRH | D17: 7 runs | E17: Brabourne | F17: T20 | I17: =CONCATENATE("probability of"," ",J1," ","losing next 2 matches against"," ",J2,":") -> probability of RR losing next 2 matches against SRH: | O17: =IF(P15=J1,N6*N7,N7*N7) -> 0.1111111111
A18: SRH | B18: RR | C18: SRH | D18: 9 wickets | E18: Hyderabad (Deccan) | F18: T20 | I18: =CONCATENATE("probability of"," ",J1," ","winning 1 and losing 1 from the next two matches against"," ",J2,":") -> probability of RR winning 1 and losing 1 from the next two matches against SRH: | O18: =IF(P15=J1,(N6*M7)+(M6*N6),(M7*N6)+(N7*M7)) -> 0.5555555556
A19: RR | B19: SRH | C19: SRH | D19: 11 runs | E19: Jaipur | F19: T20
A20: SRH | B20: RR | C20: SRH | D20: 5 wickets | E20: Hyderabad (Deccan) | F20: T20 | I20: =CONCATENATE("probability of"," ",J2," ","winning next 2 matches against"," ",J1,":") -> probability of SRH winning next 2 matches against RR: | O20: =IF(P15=J1,N6*N7,N7*N7) -> 0.1111111111
A21: RR | B21: SRH | C21: RR | D21: 7 wickets | E21: Jaipur | F21: T20 | I21: =CONCATENATE("probability of"," ",J2," ","losing next 2 matches against"," ",J1,":") -> probability of SRH losing next 2 matches against RR: | O21: =IF(P15=J1,M6*M6,M7*M6) -> 0.3333333333
A22: SRH | B22: RR | C22: RR | D22: 5 wickets | E22: Dubai (DSC) | F22: T20 | I22: =CONCATENATE("probability of"," ",J2," ","winning 1 and losing 1 from the next two matches against"," ",J1,":") -> probability of SRH winning 1 and losing 1 from the next two matches against RR: | O22: =O18 -> 0.5555555556
A23: RR | B23: SRH | C23: SRH | D23: 8 wickets | E23: Dubai (DSC) | F23: T20
A24: RR | B24: SRH | C24: RR | D24: 55 runs | E24: Delhi | F24: T20
A25: SRH | B25: RR | C25: SRH | D25: 7 wickets | E25: Dubai (DSC) | F25: T20

Sheet RR vs PBKS
A1: Team 1 | B1: Team 2 | C1: Winner | D1: Margin | E1: Ground | F1: Scorecard | G1: Super over winner | I1: T1 | J1: RR
A2: RR | B2: PBKS | C2: RR | D2: 6 wickets | E2: Jaipur | F2: T20 | I2: T2 | J2: PBKS
A3: PBKS | B3: RR | C3: PBKS | D3: 41 runs | E3: Mohali | F3: T20
A4: PBKS | B4: RR | C4: PBKS | D4: 27 runs | E4: Cape Town | F4: T20 | I4: Codes | J4: Values
A5: PBKS | B5: RR | C5: RR | D5: 78 runs | E5: Durban | F5: T20 | I5: t1t1 | J5: 6 | L5: MATRIX | M5: RR | N5: PBKS
A6: PBKS | B6: RR | C6: RR | D6: 31 runs | E6: Mohali | F6: T20 | I6: t1t2 | J6: 6 | L6: RR | M6: =J5/(J5+J6+J11) -> 0.5 | N6: =J6/(J5+J6+J11) -> 0.5
A7: RR | B7: PBKS | C7: RR | D7: 9 wickets | E7: Jaipur | F7: T20 | I7: t2t1 | J7: 6 | L7: PBKS | M7: =J7/(J7+J8+J12) -> 0.6 | N7: =J8/(J7+J8+J12) -> 0.4
A8: PBKS | B8: RR | C8: PBKS | D8: 48 runs | E8: Mohali | F8: T20 | I8: t2t2 | J8: 4
A9: RR | B9: PBKS | C9: RR | D9: 31 runs | E9: Jaipur | F9: T20 | I9: dt1 | J9: 0
A10: PBKS | B10: RR | C10: RR | D10: 43 runs | E10: Mohali | F10: T20 | I10: dt2 | J10: 0
A11: RR | B11: PBKS | C11: RR | D11: 6 wickets | E11: Jaipur | F11: T20 | I11: t1d | J11: 0
A12: PBKS | B12: RR | C12: RR | D12: 8 wickets | E12: Mohali | F12: T20 | I12: t2d | J12: 0
A13: RR | B13: PBKS | C13: PBKS | D13: 7 wickets | E13: Sharjah | F13: T20 | I13: dd | J13: 0
A14: PBKS | B14: RR | C14: PBKS | D14: 16 runs | E14: Mohali | F14: T20 | I14: Total | J14: =SUM(J5:J13) -> 22
A15: PBKS | B15: RR | C15: RR | D15: 26 runs | E15: Pune | F15: T20 | O15: Latest match winner: | P15: RR
A16: RR | B16: PBKS | C16: PBKS | E16: Ahmedabad | F16: T20 | G16: PBKS | I16: =CONCATENATE("probability of"," ",J1," ","winning next 2 matches against"," ",J2,":") -> probability of RR winning next 2 matches against PBKS: | O16: =IF(P15=J1,M6*M6,M7*M6) -> 0.25
A17: PBKS | B17: RR | C17: PBKS | D17: 6 wickets | E17: Indore | F17: T20 | I17: =CONCATENATE("probability of"," ",J1," ","losing next 2 matches against"," ",J2,":") -> probability of RR losing next 2 matches against PBKS: | O17: =IF(P15=J1,N6*N7,N7*N7) -> 0.2
A18: RR | B18: PBKS | C18: RR | D18: 15 runs | E18: Jaipur | F18: T20 | I18: =CONCATENATE("probability of"," ",J1," ","winning 1 and losing 1 from the next two matches against"," ",J2,":") -> probability of RR winning 1 and losing 1 from the next two matches against PBKS: | O18: =IF(P15=J1,(N6*M7)+(M6*N6),(M7*N6)+(N7*M7)) -> 0.55
A19: RR | B19: PBKS | C19: PBKS | D19: 14 runs | E19: Jaipur | F19: T20
A20: PBKS | B20: RR | C20: PBKS | D20: 12 runs | E20: Mohali | F20: T20 | I20: =CONCATENATE("probability of"," ",J2," ","winning next 2 matches against"," ",J1,":") -> probability of PBKS winning next 2 matches against RR: | O20: =IF(P15=J1,N6*N7,N7*N7) -> 0.2
A21: RR | B21: PBKS | C21: RR | D21: 4 wickets | E21: Sharjah | F21: T20 | I21: =CONCATENATE("probability of"," ",J2," ","losing next 2 matches against"," ",J1,":") -> probability of PBKS losing next 2 matches against RR: | O21: =IF(P15=J1,M6*M6,M7*M6) -> 0.25
A22: PBKS | B22: RR | C22: RR | D22: 7 wickets | E22: Abu Dhabi | F22: T20 | I22: =CONCATENATE("probability of"," ",J2," ","winning 1 and losing 1 from the next two matches against"," ",J1,":") -> probability of PBKS winning 1 and losing 1 from the next two matches against RR: | O22: =O18 -> 0.55
A23: RR | B23: PBKS | C23: PBKS | D23: 4 runs | E23: Wankhede | F23: T20
A24: PBKS | B24: RR | C24: RR | D24: 2 runs | E24: Dubai (DSC) | F24: T20

Sheet RR vs KKR
A1: Team 1 | B1: Team 2 | C1: Winner | D1: Margin | E1: Ground | F1: Scorecard | G1: Super over winner | I1: T1 | J1: RR
A2: RR | B2: KKR | C2: RR | D2: 45 runs | E2: Jaipur | F2: T20 | I2: T2 | J2: KKR
A3: KKR | B3: RR | C3: RR | D3: 6 wickets | E3: Kolkata | F3: T20
A4: KKR | B4: RR | C4: RR | E4: Cape Town | F4: T20 | G4: RR | I4: Codes | J4: Value
A5: KKR | B5: RR | C5: KKR | D5: 4 wickets | E5: Durban | F5: T20 | I5: t1t1 | J5: 3 | L5: MATRIX | M5: RR | N5: KKR | O5: D
A6: RR | B6: KKR | C6: RR | D6: 34 runs | E6: Ahmedabad | F6: T20 | I6: t1t2 | J6: 7 | L6: RR | M6: =J5/(J5+J6+J11) -> 0.2727272727 | N6: =J6/(J5+J6+J11) -> 0.6363636364 | O6: =J11/(J11+J5+J6) -> 0.09090909091
A7: KKR | B7: RR | C7: KKR | D7: 8 wickets | E7: Kolkata | F7: T20 | I7: t2t1 | J7: 6 | L7: KKR | M7: =J7/(J7+J8+J12) -> 0.5 | N7: =J8/(J7+J8+J12) -> 0.5 | O7: =J12/(J12+J7+J8) -> 0
A8: RR | B8: KKR | C8: KKR | D8: 9 wickets | E8: Jaipur | F8: T20 | I8: t2t2 | J8: 6 | L8: D | M8: =J9/(J9+J10+J13) -> 1 | N8: =J10/(J9+J10+J13) -> 0 | O8: =J13/(J13+J9+J10) -> 0
A9: KKR | B9: RR | C9: KKR | D9: 8 wickets | E9: Kolkata | F9: T20 | I9: dt1 | J9: 1
A10: RR | B10: KKR | C10: RR | D10: 22 runs | E10: Jaipur | F10: T20 | I10: dt2 | J10: 0
A11: KKR | B11: RR | C11: KKR | D11: 5 wickets | E11: Kolkata | F11: T20 | I11: t1d | J11: 1
A12: RR | B12: KKR | C12: RR | D12: 19 runs | E12: Jaipur | F12: T20 | I12: t2d | J12: 0
A13: KKR | B13: RR | C13: KKR | D13: 8 wickets | E13: Kolkata | F13: T20 | I13: dd | J13: 0
A14: KKR | B14: RR | C14: RR | E14: Abu Dhabi | F14: T20 | G14: RR | I14: Total | J14: =SUM(J5:J13) -> 24
A15: RR | B15: KKR | C15: RR | D15: 10 runs | E15: Ahmedabad | F15: T20 | O15: Latest match winner: | P15: KKR
A16: KKR | B16: RR | C16: D | E16: Kolkata | F16: T20 | I16: =CONCATENATE("probability of"," ",J1," ","winning next 2 matches against"," ",J2,":") -> probability of RR winning next 2 matches against KKR: | O16: =IF(P15=J1,M6*M6,M7*M6) -> 0.1363636364
A17: RR | B17: KKR | C17: RR | D17: 9 runs | E17: Brabourne | F17: T20 | I17: =CONCATENATE("probability of"," ",J1," ","losing next 2 matches against"," ",J2,":") -> probability of RR losing next 2 matches against KKR: | O17: =IF(P15=J1,N6*N7,N7*N7) -> 0.25
A18: RR | B18: KKR | C18: KKR | D18: 7 wickets | E18: Jaipur | F18: T20 | I18: =CONCATENATE("probability of"," ",J1," ","winning 1 and losing 1 from the next two matches against"," ",J2,":") -> probability of RR winning 1 and losing 1 from the next two matches against KKR: | O18: =IF(P15=J1,(N6*M7)+(M6*N6),(M7*N6)+(N7*M7)) -> 0.5681818182
A19: KKR | B19: RR | C19: KKR | D19: 6 wickets | E19: Kolkata | F19: T20
A20: KKR | B20: RR | C20: KKR | D20: 25 runs | E20: Kolkata | F20: T20 | I20: =CONCATENATE("probability of"," ",J2," ","winning next 2 matches against"," ",J1,":") -> probability of KKR winning next 2 matches against RR: | O20: =IF(P15=J1,N6*N7,N7*N7) -> 0.25
A21: RR | B21: KKR | C21: KKR | D21: 8 wickets | E21: Jaipur | F21: T20 | I21: =CONCATENATE("probability of"," ",J2," ","losing next 2 matches against"," ",J1,":") -> probability of KKR losing next 2 matches against RR: | O21: =IF(P15=J1,M6*M6,M7*M6) -> 0.1363636364
A22: KKR | B22: RR | C22: RR | D22: 3 wickets | E22: Kolkata | F22: T20 | I22: =CONCATENATE("probability of"," ",J2," ","winning 1 and losing 1 from the next two matches against"," ",J1,":") -> probability of KKR winning 1 and losing 1 from the next two matches against RR: | O22: =O18 -> 0.5681818182
A23: RR | B23: KKR | C23: KKR | D23: 37 runs | E23: Dubai (DSC) | F23: T20
A24: KKR | B24: RR | C24: KKR | D24: 60 runs | E24: Dubai (DSC) | F24: T20
A25: RR | B25: KKR | C25: RR | D25: 6 wickets | E25: Wankhede | F25: T20
A26: KKR | B26: RR | C26: KKR | D26: 86 runs | E26: Sharjah | F26: T20

Sheet RR vs DC
A1: Team 1 | B1: Team 2 | C1: Winner | D1: Margin | E1: Ground | F1: Scorecard | G1: Super over winner | I1: T1 | J1: RR
A2: DC | B2: RR | C2: DC | D2: 9 wickets | E2: Delhi | F2: T20 | I2: T2 | J2: DC
A3: RR | B3: DC | C3: RR | D3: 3 wickets | E3: Jaipur | F3: T20
A4: DC | B4: RR | C4: RR | D4: 105 runs | E4: Wankhede | F4: T20 | I4: Codes | J4: Values
A5: DC | B5: RR | C5: RR | D5: 5 wickets | E5: Centurion | F5: T20 | I5: t1t1 | J5: 8 | L5: MATRIX | M5: RR | N5: DC
A6: DC | B6: RR | C6: DC | D6: 14 runs | E6: Bloemfontein | F6: T20 | I6: t1t2 | J6: 4 | L6: RR | M6: =J5/(J5+J6+J11) -> 0.6666666667 | N6: =J6/(J5+J6+J11) -> 0.3333333333
A7: RR | B7: DC | C7: DC | D7: 6 wickets | E7: Ahmedabad | F7: T20 | I7: t2t1 | J7: 4 | L7: DC | M7: =J7/(J7+J8+J12) -> 0.3636363636 | N7: =J8/(J7+J8+J12) -> 0.6363636364
A8: DC | B8: RR | C8: DC | D8: 67 runs | E8: Delhi | F8: T20 | I8: t2t2 | J8: 7
A9: RR | B9: DC | C9: RR | D9: 6 wickets | E9: Jaipur | F9: T20 | I9: dt1 | J9: 0
A10: DC | B10: RR | C10: DC | D10: 1 run | E10: Delhi | F10: T20 | I10: dt2 | J10: 0
A11: RR | B11: DC | C11: DC | D11: 6 wickets | E11: Jaipur | F11: T20 | I11: t1d | J11: 0
A12: DC | B12: RR | C12: RR | D12: 5 runs | E12: Delhi | F12: T20 | I12: t2d | J12: 0
A13: RR | B13: DC | C13: RR | D13: 9 wickets | E13: Jaipur | F13: T20 | I13: dd | J13: 0
A14: DC | B14: RR | C14: RR | D14: 7 wickets | E14: Delhi | F14: T20 | I14: Total | J14: =SUM(J5:J13) -> 23
A15: RR | B15: DC | C15: RR | D15: 62 runs | E15: Ahmedabad | F15: T20 | O15: Latest match winner: | P15: DC
A16: DC | B16: RR | C16: RR | D16: 3 wickets | E16: Delhi | F16: T20 | I16: =CONCATENATE("probability of"," ",J1," ","winning next 2 matches against"," ",J2,":") -> probability of RR winning next 2 matches against DC: | O16: =IF(P15=J1,M6*M6,M7*M6) -> 0.2424242424
A17: RR | B17: DC | C17: RR | D17: 14 runs | E17: Brabourne | F17: T20 | I17: =CONCATENATE("probability of"," ",J1," ","losing next 2 matches against"," ",J2,":") -> probability of RR losing next 2 matches against DC: | O17: =IF(P15=J1,N6*N7,N7*N7) -> 0.4049586777
A18: RR | B18: DC | C18: RR | D18: 10 runs | E18: Jaipur | F18: T20 | I18: =CONCATENATE("probability of"," ",J1," ","winning 1 and losing 1 from the next two matches against"," ",J2,":") -> probability of RR winning 1 and losing 1 from the next two matches against DC: | O18: =IF(P15=J1,(N6*M7)+(M6*N6),(M7*N6)+(N7*M7)) -> 0.3526170799
A19: DC | B19: RR | C19: DC | D19: 4 runs | E19: Delhi | F19: T20
A20: RR | B20: DC | C20: DC | D20: 6 wickets | E20: Jaipur | F20: T20 | I20: =CONCATENATE("probability of"," ",J2," ","winning next 2 matches against"," ",J1,":") -> probability of DC winning next 2 matches against RR: | O20: =IF(P15=J1,N6*N7,N7*N7) -> 0.4049586777
A21: DC | B21: RR | C21: DC | D21: 5 wickets | E21: Delhi | F21: T20 | I21: =CONCATENATE("probability of"," ",J2," ","losing next 2 matches against"," ",J1,":") -> probability of DC losing next 2 matches against RR: | O21: =IF(P15=J1,M6*M6,M7*M6) -> 0.2424242424
A22: RR | B22: DC | C22: DC | D22: 46 runs | E22: Sharjah | F22: T20 | I22: =CONCATENATE("probability of"," ",J2," ","winning 1 and losing 1 from the next two matches against"," ",J1,":") -> probability of DC winning 1 and losing 1 from the next two matches against RR: | O22: =O18 -> 0.3526170799
A23: DC | B23: RR | C23: DC | D23: 13 runs | E23: Dubai (DSC) | F23: T20
A24: RR | B24: DC | C24: RR | D24: 3 wickets | E24: Wankhede | F24: T20
A25: DC | B25: RR | C25: DC | D25: 33 runs | E25: Abu Dhabi | F25: T20

Sheet RR vs CSK
A1: Team 1 | B1: Team 2 | C1: Winner | D1: Margin | E1: Ground | F1: Scorecard | G1: Super over winner | I1: T1 | J1: RR
A2: RR | B2: CSK | C2: RR | D2: 8 wickets | E2: Jaipur | F2: T20 | I2: T2 | J2: CSK
A3: CSK | B3: RR | C3: RR | D3: 10 runs | E3: Chennai | F3: T20
A4: CSK | B4: RR | C4: RR | D4: 3 wickets | E4: DY Patil | F4: T20 | I4: Codes | J4: Values
A5: CSK | B5: RR | C5: CSK | D5: 38 runs | E5: Centurion | F5: T20 | I5: t1t1 | J5: 3 | L5: MATRIX | M5: RR | N5: CSK
A6: CSK | B6: RR | C6: CSK | D6: 7 wickets | E6: Kimberley | F6: T20 | I6: t1t2 | J6: 6 | L6: RR | M6: =J5/(J5+J6+J11) -> 0.3333333333 | N6: =J6/(J5+J6+J11) -> 0.6666666667
A7: RR | B7: CSK | C7: RR | D7: 17 runs | E7: Ahmedabad | F7: T20 | I7: t2t1 | J7: 6 | L7: CSK | M7: =J7/(J7+J8+J12) -> 0.4 | N7: =J8/(J7+J8+J12) -> 0.6
A8: CSK | B8: RR | C8: CSK | D8: 23 runs | E8: Chennai | F8: T20 | I8: t2t2 | J8: 9
A9: CSK | B9: RR | C9: CSK | D9: 8 wickets | E9: Chennai | F9: T20 | I9: dt1 | J9: 0
A10: RR | B10: CSK | C10: CSK | D10: 63 runs | E10: Jaipur | F10: T20 | I10: dt2 | J10: 0
A11: CSK | B11: RR | C11: CSK | D11: 7 wickets | E11: Chennai | F11: T20 | I11: t1d | J11: 0
A12: RR | B12: CSK | C12: CSK | D12: 4 wickets | E12: Jaipur | F12: T20 | I12: t2d | J12: 0
A13: CSK | B13: RR | C13: CSK | D13: 5 wickets | E13: Chennai | F13: T20 | I13: dd | J13: 0
A14: RR | B14: CSK | C14: RR | D14: 5 wickets | E14: Jaipur | F14: T20 | I14: Total | J14: =SUM(J5:J13) -> 24
A15: RR | B15: CSK | C15: CSK | D15: 7 runs | E15: Dubai (DSC) | F15: T20 | O15: Latest match winner: | P15: RR
A16: CSK | B16: RR | C16: CSK | D16: 5 wickets | E16: Ranchi | F16: T20 | I16: =CONCATENATE("probability of"," ",J1," ","winning next 2 matches against"," ",J2,":") -> probability of RR winning next 2 matches against CSK: | O16: =IF(P15=J1,M6*M6,M7*M6) -> 0.1111111111
A17: RR | B17: CSK | C17: RR | D17: 8 wickets | E17: Ahmedabad | F17: T20 | I17: =CONCATENATE("probability of"," ",J1," ","losing next 2 matches against"," ",J2,":") -> probability of RR losing next 2 matches against CSK: | O17: =IF(P15=J1,N6*N7,N7*N7) -> 0.4
A18: CSK | B18: RR | C18: CSK | D18: 12 runs | E18: Chennai | F18: T20 | I18: =CONCATENATE("probability of"," ",J1," ","winning 1 and losing 1 from the next two matches against"," ",J2,":") -> probability of RR winning 1 and losing 1 from the next two matches against CSK: | O18: =IF(P15=J1,(N6*M7)+(M6*N6),(M7*N6)+(N7*M7)) -> 0.4888888889
A19: CSK | B19: RR | C19: CSK | D19: 64 runs | E19: Pune | F19: T20
A20: RR | B20: CSK | C20: RR | D20: 4 wickets | E20: Jaipur | F20: T20 | I20: =CONCATENATE("probability of"," ",J2," ","winning next 2 matches against"," ",J1,":") -> probability of CSK winning next 2 matches against RR: | O20: =IF(P15=J1,N6*N7,N7*N7) -> 0.4
A21: CSK | B21: RR | C21: CSK | D21: 8 runs | E21: Chennai | F21: T20 | I21: =CONCATENATE("probability of"," ",J2," ","losing next 2 matches against"," ",J1,":") -> probability of CSK losing next 2 matches against RR: | O21: =IF(P15=J1,M6*M6,M7*M6) -> 0.1111111111
A22: RR | B22: CSK | C22: CSK | D22: 4 wickets | E22: Jaipur | F22: T20 | I22: =CONCATENATE("probability of"," ",J2," ","winning 1 and losing 1 from the next two matches against"," ",J1,":") -> probability of CSK winning 1 and losing 1 from the next two matches against RR: | O22: =O18 -> 0.4888888889
A23: RR | B23: CSK | C23: RR | D23: 16 runs | E23: Sharjah | F23: T20
A24: CSK | B24: RR | C24: RR | D24: 7 wickets | E24: Abu Dhabi | F24: T20
A25: CSK | B25: RR | C25: CSK | D25: 45 runs | E25: Wankhede | F25: T20
A26: RR | B26: CSK | C26: RR | D26: 7 wickets | E26: Abu Dhabi | F26: T20

Sheet SRH vs CSK
A1: Team 1 | B1: Team 2 | C1: Winner | D1: Margin | E1: Ground | F1: Scorecard | G1: Super over winner | I1: T1 | J1: SRH
A2: CSK | B2: SRH | C2: SRH | D2: 7 wickets | E2: Chennai | F2: T20 | I2: T2 | J2: CSK
A3: SRH | B3: CSK | C3: CSK | D3: 7 wickets | E3: Hyderabad (Deccan) | F3: T20
A4: CSK | B4: SRH | C4: SRH | D4: 6 wickets | E4: Durban | F4: T20 | I4: Codes | J4: Values
A5: CSK | B5: SRH | C5: CSK | D5: 78 runs | E5: East London | F5: T20 | I5: t1t1 | J5: 1 | L5: MATRIX | M5: SRH | N5: CSK
A6: CSK | B6: SRH | C6: SRH | D6: 31 runs | E6: Chennai | F6: T20 | I6: t1t2 | J6: 7 | L6: SRH | M6: =J5/(J5+J6+J11) -> 0.125 | N6: =J6/(J5+J6+J11) -> 0.875
A7: SRH | B7: CSK | C7: SRH | D7: 6 wickets | E7: Nagpur | F7: T20 | I7: t2t1 | J7: 6 | L7: CSK | M7: =J7/(J7+J8+J12) -> 0.3529411765 | N7: =J8/(J7+J8+J12) -> 0.6470588235
A8: CSK | B8: SRH | C8: CSK | D8: 38 runs | E8: DY Patil | F8: T20 | I8: t2t2 | J8: 11
A9: CSK | B9: SRH | C9: CSK | D9: 19 runs | E9: Chennai | F9: T20 | I9: dt1 | J9: 0
A10: SRH | B10: CSK | C10: CSK | D10: 74 runs | E10: Visakhapatnam | F10: T20 | I10: dt2 | J10: 0
A11: CSK | B11: SRH | C11: CSK | D11: 10 runs | E11: Chennai | F11: T20 | I11: t1d | J11: 0
A12: CSK | B12: SRH | C12: CSK | D12: 5 wickets | E12: Chennai | F12: T20 | I12: t2d | J12: 0
A13: SRH | B13: CSK | C13: CSK | D13: 77 runs | E13: Hyderabad (Deccan) | F13: T20 | I13: dd | J13: 0
A14: SRH | B14: CSK | C14: CSK | D14: 5 wickets | E14: Sharjah | F14: T20 | I14: Total | J14: =SUM(J5:J13) -> 25
A15: CSK | B15: SRH | C15: SRH | D15: 6 wickets | E15: Ranchi | F15: T20 | O15: Latest match winner: | P15: CSK
A16: CSK | B16: SRH | C16: CSK | D16: 45 runs | E16: Chennai | F16: T20 | I16: =CONCATENATE("probability of"," ",J1," ","winning next 2 matches against"," ",J2,":") -> probability of SRH winning next 2 matches against CSK: | O16: =IF(P15=J1,M6*M6,M7*M6) -> 0.04411764706
A17: SRH | B17: CSK | C17: SRH | D17: 22 runs | E17: Hyderabad (Deccan) | F17: T20 | I17: =CONCATENATE("probability of"," ",J1," ","losing next 2 matches against"," ",J2,":") -> probability of SRH losing next 2 matches against CSK: | O17: =IF(P15=J1,N6*N7,N7*N7) -> 0.4186851211
A18: SRH | B18: CSK | C18: CSK | D18: 4 runs | E18: Hyderabad (Deccan) | F18: T20 | I18: =CONCATENATE("probability of"," ",J1," ","winning 1 and losing 1 from the next two matches against"," ",J2,":") -> probability of SRH winning 1 and losing 1 from the next two matches against CSK: | O18: =IF(P15=J1,(N6*M7)+(M6*N6),(M7*N6)+(N7*M7)) -> 0.5371972318
A19: CSK | B19: SRH | C19: CSK | D19: 8 wickets | E19: Pune | F19: T20
A20: CSK | B20: SRH | C20: CSK | D20: 2 wickets | E20: Wankhede | F20: T20 | I20: =CONCATENATE("probability of"," ",J2," ","winning next 2 matches against"," ",J1,":") -> probability of CSK winning next 2 matches against SRH: | O20: =IF(P15=J1,N6*N7,N7*N7) -> 0.4186851211
A21: CSK | B21: SRH | C21: CSK | D21: 8 wickets | E21: Wankhede | F21: T20 | I21: =CONCATENATE("probability of"," ",J2," ","losing next 2 matches against"," ",J1,":") -> probability of CSK losing next 2 matches against SRH: | O21: =IF(P15=J1,M6*M6,M7*M6) -> 0.04411764706
A22: SRH | B22: CSK | C22: SRH | D22: 6 wickets | E22: Hyderabad (Deccan) | F22: T20 | I22: =CONCATENATE("probability of"," ",J2," ","winning 1 and losing 1 from the next two matches against"," ",J1,":") -> probability of CSK winning 1 and losing 1 from the next two matches against SRH: | O22: =O18 -> 0.5371972318
A23: CSK | B23: SRH | C23: CSK | D23: 6 wickets | E23: Chennai | F23: T20
A24: CSK | B24: SRH | C24: SRH | D24: 7 runs | E24: Dubai (DSC) | F24: T20
A25: SRH | B25: CSK | C25: CSK | D25: 20 runs | E25: Dubai (DSC) | F25: T20
A26: CSK | B26: SRH | C26: CSK | D26: 7 wickets | E26: Delhi | F26: T20
A27: SRH | B27: CSK | C27: CSK | D27: 6 wickets | E27: Sharjah | F27: T20

Sheet SRH vs DC
A1: Team 1 | B1: Team 2 | C1: Winner | D1: Margin | E1: Ground | F1: Scorecard | G1: Super over winner | I1: T1 | J1: SRH
A2: SRH | B2: DC | C2: DC | D2: 9 wickets | E2: Hyderabad (Deccan) | F2: T20 | I2: T2 | J2: DC
A3: DC | B3: SRH | C3: DC | D3: 12 runs | E3: Delhi | F3: T20
A4: SRH | B4: DC | C4: DC | D4: 6 wickets | E4: Centurion | F4: T20 | I4: Codes | J4: Values
A5: SRH | B5: DC | C5: DC | D5: 12 runs | E5: Durban | F5: T20 | I5: t1t1 | J5: 9 | L5: MATRIX | M5: SRH | N5: DC
A6: SRH | B6: DC | C6: SRH | D6: 6 wickets | E6: Centurion | F6: T20 | I6: t1t2 | J6: 6 | L6: SRH | M6: =J5/(J5+J6+J11) -> 0.6 | N6: =J6/(J5+J6+J11) -> 0.4
A7: SRH | B7: DC | C7: SRH | D7: 10 runs | E7: Cuttack | F7: T20 | I7: t2t1 | J7: 6 | L7: DC | M7: =J7/(J7+J8+J12) -> 0.4 | N7: =J8/(J7+J8+J12) -> 0.6
A8: DC | B8: SRH | C8: SRH | D8: 11 runs | E8: Delhi | F8: T20 | I8: t2t2 | J8: 9
A9: DC | B9: SRH | C9: SRH | D9: 16 runs | E9: Delhi | F9: T20 | I9: dt1 | J9: 0
A10: SRH | B10: DC | C10: DC | D10: 4 wickets | E10: Hyderabad (Deccan) | F10: T20 | I10: dt2 | J10: 0
A11: DC | B11: SRH | C11: DC | D11: 5 wickets | E11: Delhi | F11: T20 | I11: t1d | J11: 0
A12: SRH | B12: DC | C12: DC | D12: 9 wickets | E12: Hyderabad (Deccan) | F12: T20 | I12: t2d | J12: 0
A13: DC | B13: SRH | C13: SRH | D13: 3 wickets | E13: Delhi | F13: T20 | I13: dd | J13: 0
A14: SRH | B14: DC | C14: SRH | D14: 6 wickets | E14: Hyderabad (Deccan) | F14: T20 | I14: Total | J14: =SUM(J5:J13) -> 30
A15: SRH | B15: DC | C15: SRH | D15: 4 runs | E15: Dubai (DSC) | F15: T20 | O15: Latest match winner: | P15: DC
A16: DC | B16: SRH | C16: SRH | D16: 8 wickets | E16: Delhi | F16: T20 | I16: =CONCATENATE("probability of"," ",J1," ","winning next 2 matches against"," ",J2,":") -> probability of SRH winning next 2 matches against DC: | O16: =IF(P15=J1,M6*M6,M7*M6) -> 0.24
A17: SRH | B17: DC | C17: DC | D17: 4 runs | E17: Visakhapatnam | F17: T20 | I17: =CONCATENATE("probability of"," ",J1," ","losing next 2 matches against"," ",J2,":") -> probability of SRH losing next 2 matches against DC: | O17: =IF(P15=J1,N6*N7,N7*N7) -> 0.36
A18: DC | B18: SRH | C18: SRH | D18: 6 runs | E18: Raipur | F18: T20 | I18: =CONCATENATE("probability of"," ",J1," ","winning 1 and losing 1 from the next two matches against"," ",J2,":") -> probability of SRH winning 1 and losing 1 from the next two matches against DC: | O18: =IF(P15=J1,(N6*M7)+(M6*N6),(M7*N6)+(N7*M7)) -> 0.4
A19: SRH | B19: DC | C19: DC | D19: 7 wickets | E19: Hyderabad (Deccan) | F19: T20
A20: DC | B20: SRH | C20: DC | D20: 6 wickets | E20: Raipur | F20: T20 | I20: =CONCATENATE("probability of"," ",J2," ","winning next 2 matches against"," ",J1,":") -> probability of DC winning next 2 matches against SRH: | O20: =IF(P15=J1,N6*N7,N7*N7) -> 0.36
A21: SRH | B21: DC | C21: SRH | D21: 15 runs | E21: Hyderabad (Deccan) | F21: T20 | I21: =CONCATENATE("probability of"," ",J2," ","losing next 2 matches against"," ",J1,":") -> probability of DC losing next 2 matches against SRH: | O21: =IF(P15=J1,M6*M6,M7*M6) -> 0.24
A22: DC | B22: SRH | C22: DC | D22: 6 wickets | E22: Delhi | F22: T20 | I22: =CONCATENATE("probability of"," ",J2," ","winning 1 and losing 1 from the next two matches against"," ",J1,":") -> probability of DC winning 1 and losing 1 from the next two matches against SRH: | O22: =O18 -> 0.4
A23: SRH | B23: DC | C23: SRH | D23: 7 wickets | E23: Hyderabad (Deccan) | F23: T20
A24: DC | B24: SRH | C24: SRH | D24: 9 wickets | E24: Delhi | F24: T20
A25: DC | B25: SRH | C25: SRH | D25: 5 wickets | E25: Delhi | F25: T20
A26: SRH | B26: DC | C26: DC | D26: 39 runs | E26: Hyderabad (Deccan) | F26: T20
A27: SRH | B27: DC | C27: DC | D27: 2 wickets | E27: Visakhapatnam | F27: T20
A28: DC | B28: SRH | C28: SRH | D28: 15 runs | E28: Abu Dhabi | F28: T20
A29: SRH | B29: DC | C29: SRH | D29: 88 runs | E29: Dubai (DSC) | F29: T20
A30: DC | B30: SRH | C30: DC | D30: 17 runs | E30: Abu Dhabi | F30: T20
A31: SRH | B31: DC | C31: DC | E31: Chennai | F31: T20 | G31: DC
A32: DC | B32: SRH | C32: DC | D32: 8 wickets | E32: Dubai (DSC) | F32: T20

Sheet SRH vs KKR
A1: Team 1 | B1: Team 2 | C1: Winner | D1: Margin | E1: Ground | F1: Scorecard | G1: Super over winner | I1: T1 | J1: SRH
A2: KKR | B2: SRH | C2: KKR | D2: 5 wickets | E2: Kolkata | F2: T20 | I2: T2 | J2: KKR
A3: SRH | B3: KKR | C3: KKR | D3: 23 runs | E3: Hyderabad (Deccan) | F3: T20
A4: SRH | B4: KKR | C4: SRH | D4: 8 wickets | E4: Cape Town | F4: T20 | I4: Codes | J4: Values
A5: SRH | B5: KKR | C5: SRH | D5: 6 wickets | E5: Johannesburg | F5: T20 | I5: t1t1 | J5: 1 | L5: MATRIX | M5: SRH | N5: KKR | O5: D
A6: SRH | B6: KKR | C6: KKR | D6: 11 runs | E6: DY Patil | F6: T20 | I6: t1t2 | J6: 8 | L6: SRH | M6: =J5/(J5+J6+J11) -> 0.1111111111 | N6: =J6/(J5+J6+J11) -> 0.8888888889 | O6: =J11/(J11+J5+J6) -> 0
A7: KKR | B7: SRH | C7: KKR | D7: 24 runs | E7: Kolkata | F7: T20 | I7: t2t1 | J7: 8 | L7: KKR | M7: =J7/(J7+J8+J12) -> 0.4 | N7: =J8/(J7+J8+J12) -> 0.55 | O7: =J12/(J12+J7+J8) -> 0.05
A8: KKR | B8: SRH | C8: KKR | D8: 9 runs | E8: Kolkata | F8: T20 | I8: t2t2 | J8: 11 | L8: D | M8: =J9/(J9+J10+J13) -> 0 | N8: =J10/(J9+J10+J13) -> 1 | O8: =J13/(J13+J9+J10) -> 0
A9: SRH | B9: KKR | C9: KKR | D9: 20 runs | E9: Hyderabad (Deccan) | F9: T20 | I9: dt1 | J9: 0
A10: SRH | B10: KKR | C10: KKR | D10: 5 wickets | E10: Cuttack | F10: T20 | I10: dt2 | J10: 1
A11: KKR | B11: SRH | C11: D | E11: Kolkata | F11: T20 | I11: t1d | J11: 0
A12: KKR | B12: SRH | C12: KKR | D12: 48 runs | E12: Kolkata | F12: T20 | I12: t2d | J12: 1
A13: SRH | B13: KKR | C13: SRH | D13: 5 wickets | E13: Hyderabad (Deccan) | F13: T20 | I13: dd | J13: 0
A14: SRH | B14: KKR | C14: KKR | D14: 7 wickets | E14: Hyderabad (Deccan) | F14: T20 | I14: Total | J14: =SUM(J5:J13) -> 30
A15: KKR | B15: SRH | C15: KKR | D15: 4 wickets | E15: Kolkata | F15: T20 | O15: Latest match winner: | P15: KKR
A16: SRH | B16: KKR | C16: SRH | D16: 16 runs | E16: Visakhapatnam | F16: T20 | I16: =CONCATENATE("probability of"," ",J1," ","winning next 2 matches against"," ",J2,":") -> probability of SRH winning next 2 matches against KKR: | O16: =IF(P15=J1,M6*M6,M7*M6) -> 0.04444444444
A17: KKR | B17: SRH | C17: KKR | D17: 35 runs | E17: Kolkata | F17: T20 | I17: =CONCATENATE("probability of"," ",J1," ","losing next 2 matches against"," ",J2,":") -> probability of SRH losing next 2 matches against KKR: | O17: =IF(P15=J1,N6*N7,N7*N7) -> 0.3025
A18: SRH | B18: KKR | C18: KKR | D18: 8 wickets | E18: Hyderabad (Deccan) | F18: T20 | I18: =CONCATENATE("probability of"," ",J1," ","winning 1 and losing 1 from the next two matches against"," ",J2,":") -> probability of SRH winning 1 and losing 1 from the next two matches against KKR: | O18: =IF(P15=J1,(N6*M7)+(M6*N6),(M7*N6)+(N7*M7)) -> 0.5755555556
A19: KKR | B19: SRH | C19: KKR | D19: 22 runs | E19: Kolkata | F19: T20
A20: KKR | B20: SRH | C20: SRH | D20: 22 runs | E20: Delhi | F20: T20 | I20: =CONCATENATE("probability of"," ",J2," ","winning next 2 matches against"," ",J1,":") -> probability of KKR winning next 2 matches against SRH: | O20: =IF(P15=J1,N6*N7,N7*N7) -> 0.3025
A21: KKR | B21: SRH | C21: KKR | D21: 17 runs | E21: Kolkata | F21: T20 | I21: =CONCATENATE("probability of"," ",J2," ","losing next 2 matches against"," ",J1,":") -> probability of KKR losing next 2 matches against SRH: | O21: =IF(P15=J1,M6*M6,M7*M6) -> 0.04444444444
A22: SRH | B22: KKR | C22: SRH | D22: 48 runs | E22: Hyderabad (Deccan) | F22: T20 | I22: =CONCATENATE("probability of"," ",J2," ","winning 1 and losing 1 from the next two matches against"," ",J1,":") -> probability of KKR winning 1 and losing 1 from the next two matches against SRH: | O22: =O18 -> 0.5755555556
A23: KKR | B23: SRH | C23: KKR | D23: 7 wickets | E23: Bengaluru | F23: T20
A24: KKR | B24: SRH | C24: SRH | D24: 5 wickets | E24: Kolkata | F24: T20
A25: SRH | B25: KKR | C25: KKR | D25: 5 wickets | E25: Hyderabad (Deccan) | F25: T20
A26: KKR | B26: SRH | C26: SRH | D26: 14 runs | E26: Kolkata | F26: T20
A27: KKR | B27: SRH | C27: KKR | D27: 6 wickets | E27: Kolkata | F27: T20
A28: SRH | B28: KKR | C28: SRH | D28: 9 wickets | E28: Hyderabad (Deccan) | F28: T20
A29: KKR | B29: SRH | C29: KKR | D29: 7 wickets | E29: Abu Dhabi | F29: T20
A30: SRH | B30: KKR | C30: KKR | E30: Abu Dhabi | F30: T20 | G30: KKR
A31: SRH | B31: KKR | C31: KKR | D31: 10 runs | E31: Chennai | F31: T20
A32: KKR | B32: SRH | C32: KKR | D32: 6 wickets | E32: Dubai (DSC) | F32: T20

Sheet SRH vs PBKS
A1: Team 1 | B1: Team 2 | C1: Winner | D1: Margin | E1: Ground | F1: Scorecard | G1: Super over winner | I1: T1 | J1: SRH
A2: SRH | B2: PBKS | C2: PBKS | D2: 7 wickets | E2: Hyderabad (Deccan) | F2: T20 | I2: T2 | J2: PBKS
A3: PBKS | B3: SRH | C3: PBKS | D3: 6 wickets | E3: Mohali | F3: T20
A4: SRH | B4: PBKS | C4: PBKS | D4: 3 wickets | E4: Kimberley | F4: T20 | I4: Codes | J4: Values
A5: SRH | B5: PBKS | C5: PBKS | D5: 1 run | E5: Johannesburg | F5: T20 | I5: t1t1 | J5: 8 | L5: MATRIX | M5: SRH | N5: PBKS
A6: SRH | B6: PBKS | C6: SRH | D6: 6 runs | E6: Cuttack | F6: T20 | I6: t1t2 | J6: 7 | L6: SRH | M6: =J5/(J5+J6+J11) -> 0.5333333333 | N6: =J6/(J5+J6+J11) -> 0.4666666667
A7: PBKS | B7: SRH | C7: SRH | D7: 5 wickets | E7: Dharamsala | F7: T20 | I7: t2t1 | J7: 7 | L7: PBKS | M7: =J7/(J7+J8+J12) -> 0.5833333333 | N7: =J8/(J7+J8+J12) -> 0.4166666667
A8: SRH | B8: PBKS | C8: PBKS | D8: 8 wickets | E8: Hyderabad (Deccan) | F8: T20 | I8: t2t2 | J8: 5
A9: PBKS | B9: SRH | C9: SRH | D9: 82 runs | E9: Dharamsala | F9: T20 | I9: dt1 | J9: 0
A10: SRH | B10: PBKS | C10: PBKS | D10: 25 runs | E10: Hyderabad (Deccan) | F10: T20 | I10: dt2 | J10: 0
A11: PBKS | B11: SRH | C11: PBKS | D11: 4 wickets | E11: Mohali | F11: T20 | I11: t1d | J11: 0
A12: SRH | B12: PBKS | C12: SRH | D12: 5 wickets | E12: Hyderabad (Deccan) | F12: T20 | I12: t2d | J12: 0
A13: PBKS | B13: SRH | C13: SRH | D13: 30 runs | E13: Mohali | F13: T20 | I13: dd | J13: 0
A14: PBKS | B14: SRH | C14: PBKS | D14: 72 runs | E14: Sharjah | F14: T20 | I14: Total | J14: =SUM(J5:J13) -> 27
A15: SRH | B15: PBKS | C15: PBKS | D15: 6 wickets | E15: Hyderabad (Deccan) | F15: T20 | O15: Latest match winner: | P15: PBKS
A16: PBKS | B16: SRH | C16: SRH | D16: 20 runs | E16: Mohali | F16: T20 | I16: =CONCATENATE("probability of"," ",J1," ","winning next 2 matches against"," ",J2,":") -> probability of SRH winning next 2 matches against PBKS: | O16: =IF(P15=J1,M6*M6,M7*M6) -> 0.3111111111
A17: SRH | B17: PBKS | C17: SRH | D17: 5 runs | E17: Hyderabad (Deccan) | F17: T20 | I17: =CONCATENATE("probability of"," ",J1," ","losing next 2 matches against"," ",J2,":") -> probability of SRH losing next 2 matches against PBKS: | O17: =IF(P15=J1,N6*N7,N7*N7) -> 0.1736111111
A18: SRH | B18: PBKS | C18: SRH | D18: 5 wickets | E18: Hyderabad (Deccan) | F18: T20 | I18: =CONCATENATE("probability of"," ",J1," ","winning 1 and losing 1 from the next two matches against"," ",J2,":") -> probability of SRH winning 1 and losing 1 from the next two matches against PBKS: | O18: =IF(P15=J1,(N6*M7)+(M6*N6),(M7*N6)+(N7*M7)) -> 0.5152777778
A19: PBKS | B19: SRH | C19: SRH | D19: 7 wickets | E19: Mohali | F19: T20
A20: SRH | B20: PBKS | C20: SRH | D20: 5 runs | E20: Hyderabad (Deccan) | F20: T20 | I20: =CONCATENATE("probability of"," ",J2," ","winning next 2 matches against"," ",J1,":") -> probability of PBKS winning next 2 matches against SRH: | O20: =IF(P15=J1,N6*N7,N7*N7) -> 0.1736111111
A21: PBKS | B21: SRH | C21: SRH | D21: 26 runs | E21: Mohali | F21: T20 | I21: =CONCATENATE("probability of"," ",J2," ","losing next 2 matches against"," ",J1,":") -> probability of PBKS losing next 2 matches against SRH: | O21: =IF(P15=J1,M6*M6,M7*M6) -> 0.3111111111
A22: PBKS | B22: SRH | C22: PBKS | D22: 15 runs | E22: Mohali | F22: T20 | I22: =CONCATENATE("probability of"," ",J2," ","winning 1 and losing 1 from the next two matches against"," ",J1,":") -> probability of PBKS winning 1 and losing 1 from the next two matches against SRH: | O22: =O18 -> 0.5152777778
A23: SRH | B23: PBKS | C23: SRH | D23: 13 runs | E23: Hyderabad (Deccan) | F23: T20
A24: PBKS | B24: SRH | C24: PBKS | D24: 6 wickets | E24: Mohali | F24: T20
A25: SRH | B25: PBKS | C25: SRH | D25: 45 runs | E25: Hyderabad (Deccan) | F25: T20
A26: SRH | B26: PBKS | C26: SRH | D26: 69 runs | E26: Dubai (DSC) | F26: T20
A27: PBKS | B27: SRH | C27: PBKS | D27: 12 runs | E27: Dubai (DSC) | F27: T20
A28: PBKS | B28: SRH | C28: SRH | D28: 9 wickets | E28: Chennai | F28: T20
A29: SRH | B29: PBKS | C29: PBKS | D29: 5 runs | E29: Sharjah | F29: T20

Sheet KKR vs PBKS
A1: Team 1 | B1: Team 2 | C1: Winner | D1: Margin | E1: Ground | F1: Scorecard | G1: Super over winner | I1: T1 | J1: KKR
A2: PBKS | B2: KKR | C2: PBKS | D2: 9 runs | E2: Mohali | F2: T20 | I2: T2 | J2: PBKS
A3: KKR | B3: PBKS | C3: KKR | D3: 3 wickets | E3: Kolkata | F3: T20
A4: PBKS | B4: KKR | C4: KKR | D4: 11 runs | E4: Durban | F4: T20 | I4: Codes | J4: Values
A5: PBKS | B5: KKR | C5: PBKS | D5: 6 wickets | E5: Port Elizabeth | F5: T20 | I5: t1t1 | J5: 11 | L5: MATRIX | M5: KKR | N5: PBKS
A6: PBKS | B6: KKR | C6: KKR | D6: 39 runs | E6: Mohali | F6: T20 | I6: t1t2 | J6: 8 | L6: KKR | M6: =J5/(J5+J6+J11) -> 0.5789473684 | N6: =J6/(J5+J6+J11) -> 0.4210526316
A7: KKR | B7: PBKS | C7: PBKS | D7: 8 wickets | E7: Kolkata | F7: T20 | I7: t2t1 | J7: 8 | L7: PBKS | M7: =J7/(J7+J8+J12) -> 0.8888888889 | N7: =J8/(J7+J8+J12) -> 0.1111111111
A8: KKR | B8: PBKS | C8: KKR | D8: 8 wickets | E8: Kolkata | F8: T20 | I8: t2t2 | J8: 1
A9: KKR | B9: PBKS | C9: PBKS | D9: 2 runs | E9: Kolkata | F9: T20 | I9: dt1 | J9: 0
A10: PBKS | B10: KKR | C10: KKR | D10: 8 wickets | E10: Mohali | F10: T20 | I10: dt2 | J10: 0
A11: PBKS | B11: KKR | C11: PBKS | D11: 4 runs | E11: Mohali | F11: T20 | I11: t1d | J11: 0
A12: KKR | B12: PBKS | C12: KKR | D12: 6 wickets | E12: Kolkata | F12: T20 | I12: t2d | J12: 0
A13: KKR | B13: PBKS | C13: PBKS | D13: 23 runs | E13: Abu Dhabi | F13: T20 | I13: dd | J13: 0
A14: PBKS | B14: KKR | C14: KKR | D14: 9 wickets | E14: Cuttack | F14: T20 | I14: Total | J14: =SUM(J5:J13) -> 28
A15: KKR | B15: PBKS | C15: KKR | D15: 28 runs | E15: Kolkata | F15: T20 | O15: Latest match winner: | P15: PBKS
A16: PBKS | B16: KKR | C16: KKR | D16: 3 wickets | E16: Bengaluru | F16: T20 | I16: =CONCATENATE("probability of"," ",J1," ","winning next 2 matches against"," ",J2,":") -> probability of KKR winning next 2 matches against PBKS: | O16: =IF(P15=J1,M6*M6,M7*M6) -> 0.514619883
A17: PBKS | B17: KKR | C17: KKR | D17: 4 wickets | E17: Pune | F17: T20 | I17: =CONCATENATE("probability of"," ",J1," ","losing next 2 matches against"," ",J2,":") -> probability of KKR losing next 2 matches against PBKS: | O17: =IF(P15=J1,N6*N7,N7*N7) -> 0.01234567901
A18: KKR | B18: PBKS | C18: KKR | D18: 1 wicket | E18: Kolkata | F18: T20 | I18: =CONCATENATE("probability of"," ",J1," ","winning 1 and losing 1 from the next two matches against"," ",J2,":") -> probability of KKR winning 1 and losing 1 from the next two matches against PBKS: | O18: =IF(P15=J1,(N6*M7)+(M6*N6),(M7*N6)+(N7*M7)) -> 0.4730344379
A19: PBKS | B19: KKR | C19: KKR | D19: 6 wickets | E19: Mohali | F19: T20
A20: KKR | B20: PBKS | C20: KKR | D20: 7 runs | E20: Kolkata | F20: T20 | I20: =CONCATENATE("probability of"," ",J2," ","winning next 2 matches against"," ",J1,":") -> probability of PBKS winning next 2 matches against KKR: | O20: =IF(P15=J1,N6*N7,N7*N7) -> 0.01234567901
A21: KKR | B21: PBKS | C21: KKR | D21: 8 wickets | E21: Kolkata | F21: T20 | I21: =CONCATENATE("probability of"," ",J2," ","losing next 2 matches against"," ",J1,":") -> probability of PBKS losing next 2 matches against KKR: | O21: =IF(P15=J1,M6*M6,M7*M6) -> 0.514619883
A22: PBKS | B22: KKR | C22: PBKS | D22: 14 runs | E22: Mohali | F22: T20 | I22: =CONCATENATE("probability of"," ",J2," ","winning 1 and losing 1 from the next two matches against"," ",J1,":") -> probability of PBKS winning 1 and losing 1 from the next two matches against KKR: | O22: =O18 -> 0.4730344379
A23: KKR | B23: PBKS | C23: PBKS | D23: 9 wickets | E23: Kolkata | F23: T20
A24: PBKS | B24: KKR | C24: KKR | D24: 31 runs | E24: Indore | F24: T20
A25: KKR | B25: PBKS | C25: KKR | D25: 28 runs | E25: Kolkata | F25: T20
A26: PBKS | B26: KKR | C26: KKR | D26: 7 wickets | E26: Mohali | F26: T20
A27: PBKS | B27: KKR | C27: KKR | D27: 2 runs | E27: Abu Dhabi | F27: T20
A28: KKR | B28: PBKS | C28: PBKS | D28: 8 wickets | E28: Sharjah | F28: T20
A29: PBKS | B29: KKR | C29: KKR | D29: 5 wickets | E29: Ahmedabad | F29: T20
A30: KKR | B30: PBKS | C30: PBKS | D30: 5 wickets | E30: Dubai (DSC) | F30: T20

Sheet KKR vs DC
A1: Team 1 | B1: Team 2 | C1: Winner | D1: Margin | E1: Ground | F1: Match Date | G1: Scorecard | H1: Super over winner | J1: T1 | K1: KKR
A2: KKR | B2: DC | C2: KKR | D2: 23 runs | E2: Kolkata | F2: 39581 | G2: T20 | J2: T2 | K2: DC
A3: DC | B3: KKR | C3: D | E3: Delhi | F3: 39590 | G3: T20
A4: DC | B4: KKR | C4: DC | D4: 9 wickets | E4: Durban | F4: 39938 | G4: T20 | J4: Codes | K4: Values
A5: DC | B5: KKR | C5: DC | D5: 7 wickets | E5: Johannesburg | F5: 39943 | G5: T20 | J5: t1t1 | K5: 9 | M5: MATRIX | N5: KKR | O5: DC | P5: D
A6: DC | B6: KKR | C6: DC | D6: 40 runs | E6: Delhi | F6: 40266 | G6: T20 | J6: t1t2 | K6: 5 | M6: KKR | N6: =K5/(K5+K6+K11) -> 0.6 | O6: =K6/(K5+K6+K11) -> 0.3333333333 | P6: =K11/(K11+K5+K6) -> 0.06666666667
A7: KKR | B7: DC | C7: KKR | D7: 14 runs | E7: Kolkata | F7: 40275 | G7: T20 | J7: t2t1 | K7: 6 | M7: DC | N7: =K7/(K7+K8+K12) -> 0.5 | O7: =K8/(K7+K8+K12) -> 0.5 | P7: =K12/(K12+K7+K8) -> 0
A8: DC | B8: KKR | C8: KKR | D8: 17 runs | E8: Delhi | F8: 40661 | G8: T20 | J8: t2t2 | K8: 6 | M8: D | N8: =K9/(K9+K10+K13) -> 0 | O8: =K10/(K9+K10+K13) -> 1 | P8: =K13/(K13+K9+K10) -> 0
A9: KKR | B9: DC | C9: DC | D9: 8 wickets | E9: Kolkata | F9: 41004 | G9: T20 | J9: dt1 | K9: 0
A10: DC | B10: KKR | C10: KKR | D10: 6 wickets | E10: Delhi | F10: 41036 | G10: T20 | J10: dt2 | K10: 1
A11: DC | B11: KKR | C11: KKR | D11: 18 runs | E11: Pune | F11: 41051 | G11: T20 | J11: t1d | K11: 1
A12: KKR | B12: DC | C12: KKR | D12: 6 wickets | E12: Kolkata | F12: 41367 | G12: T20 | J12: t2d | K12: 0
A13: DC | B13: KKR | C13: DC | D13: 7 wickets | E13: Raipur | F13: 41395 | G13: T20 | J13: dd | K13: 0
A14: KKR | B14: DC | C14: DC | D14: 4 wickets | E14: Dubai (DSC) | F14: 41748 | G14: T20 | J14: Total | K14: =SUM(K5:K13) -> 28
A15: DC | B15: KKR | C15: KKR | D15: 8 wickets | E15: Delhi | F15: 41766 | G15: T20 | P15: Latest match winner: | Q15: KKR
A16: DC | B16: KKR | C16: KKR | D16: 6 wickets | E16: Delhi | F16: 42114 | G16: T20 | J16: =CONCATENATE("probability of"," ",K1," ","winning next 2 matches against"," ",K2,":") -> probability of KKR winning next 2 matches against DC: | P16: =IF(Q15=K1,N6*N6,N7*N6) -> 0.36
A17: KKR | B17: DC | C17: KKR | D17: 13 runs | E17: Kolkata | F17: 42131 | G17: T20 | J17: =CONCATENATE("probability of"," ",K1," ","losing next 2 matches against"," ",K2,":") -> probability of KKR losing next 2 matches against DC: | P17: =IF(Q15=K1,O6*O7,O7*O7) -> 0.1666666667
A18: KKR | B18: DC | C18: KKR | D18: 9 wickets | E18: Kolkata | F18: 42470 | G18: T20 | J18: =CONCATENATE("probability of"," ",K1," ","winning 1 and losing 1 from the next two matches against"," ",K2,":") -> probability of KKR winning 1 and losing 1 from the next two matches against DC: | P18: =IF(Q15=K1,(O6*N7)+(N6*O6),(N7*O6)+(O7*N7)) -> 0.3666666667
A19: DC | B19: KKR | C19: DC | D19: 27 runs | E19: Delhi | F19: 42490 | G19: T20
A20: DC | B20: KKR | C20: KKR | D20: 4 wickets | E20: Delhi | F20: 42842 | G20: T20 | J20: =CONCATENATE("probability of"," ",K2," ","winning next 2 matches against"," ",K1,":") -> probability of DC winning next 2 matches against KKR: | P20: =IF(Q15=K1,O6*O7,O7*O7) -> 0.1666666667
A21: KKR | B21: DC | C21: KKR | D21: 7 wickets | E21: Kolkata | F21: 42853 | G21: T20 | J21: =CONCATENATE("probability of"," ",K2," ","losing next 2 matches against"," ",K1,":") -> probability of DC losing next 2 matches against KKR: | P21: =IF(Q15=K1,N6*N6,N7*N6) -> 0.36
A22: KKR | B22: DC | C22: KKR | D22: 71 runs | E22: Kolkata | F22: 43206 | G22: T20 | J22: =CONCATENATE("probability of"," ",K2," ","winning 1 and losing 1 from the next two matches against"," ",K1,":") -> probability of DC winning 1 and losing 1 from the next two matches against KKR: | P22: =P18 -> 0.3666666667
A23: DC | B23: KKR | C23: DC | D23: 55 runs | E23: Delhi | F23: 43217 | G23: T20
A24: DC | B24: KKR | C24: DC | E24: Delhi | F24: 43554 | G24: T20 | H24: DC
A25: KKR | B25: DC | C25: DC | D25: 7 wickets | E25: Kolkata | F25: 43567 | G25: T20
A26: DC | B26: KKR | C26: DC | D26: 18 runs | E26: Sharjah | F26: 44107 | G26: T20
A27: KKR | B27: DC | C27: KKR | D27: 59 runs | E27: Abu Dhabi | F27: 44128 | G27: T20
A28: DC | B28: KKR | C28: DC | D28: 7 wickets | E28: Ahmedabad | F28: 44315 | G28: T20
A29: KKR | B29: DC | C29: KKR | D29: 3 wickets | E29: Sharjah | F29: 44467 | G29: T20
A30: DC | B30: KKR | C30: KKR | D30: 3 wickets | E30: Sharjah | F30: 44482 | G30: T20

Sheet KKR vs CSK
A1: Team 1 | B1: Team 2 | C1: Winner | D1: Margin | E1: Ground | F1: Match Date | G1: Scorecard | H1: Super over winner | J1: T1 | K1: KKR
A2: CSK | B2: KKR | C2: CSK | D2: 9 wickets | E2: Chennai | F2: 2008-04-26 | G2: T20 | J2: T2 | K2: CSK
A3: KKR | B3: CSK | C3: CSK | D3: 3 runs | E3: Kolkata | F3: 2008-05-18 | G3: T20
A4: CSK | B4: KKR | C4: D | E4: Cape Town | F4: 2009-04-25 | G4: T20 | J4: Codes | K4: Vaues
A5: CSK | B5: KKR | C5: KKR | D5: 7 wickets | E5: Centurion | F5: 2009-05-18 | G5: T20 | J5: t1t1 | K5: 1 | M5: MATRIX | N5: KKR | O5: CSK | P5: D
A6: KKR | B6: CSK | C6: CSK | D6: 55 runs | E6: Kolkata | F6: 2010-03-16 | G6: T20 | J6: t1t2 | K6: 7 | M6: KKR | N6: =K5/(K5+K6+K11) -> 0.125 | O6: =K6/(K5+K6+K11) -> 0.875 | P6: =K11/(K11+K5+K6) -> 0
A7: CSK | B7: KKR | C7: CSK | D7: 9 wickets | E7: Chennai | F7: 2010-04-13 | G7: T20 | J7: t2t1 | K7: 6 | M7: CSK | N7: =K7/(K7+K8+K12) -> 0.375 | O7: =K8/(K7+K8+K12) -> 0.5625 | P7: =K12/(K12+K7+K8) -> 0.0625
A8: CSK | B8: KKR | C8: CSK | D8: 2 runs | E8: Chennai | F8: 2011-04-08 | G8: T20 | J8: t2t2 | K8: 9 | M8: D | N8: =K9/(K9+K10+K13) -> 1 | O8: =K10/(K9+K10+K13) -> 0 | P8: =K13/(K13+K9+K10) -> 0
A9: KKR | B9: CSK | C9: KKR | D9: 10 runs | E9: Kolkata | F9: 2011-05-07 | G9: T20 | J9: dt1 | K9: 1
A10: CSK | B10: KKR | C10: KKR | D10: 5 wickets | E10: Chennai | F10: 2012-04-30 | G10: T20 | J10: dt2 | K10: 0
A11: KKR | B11: CSK | C11: CSK | D11: 5 wickets | E11: Kolkata | F11: 2012-05-14 | G11: T20 | J11: t1d | K11: 0
A12: CSK | B12: KKR | C12: KKR | D12: 5 wickets | E12: Chennai | F12: 2012-05-27 | G12: T20 | J12: t2d | K12: 1
A13: KKR | B13: CSK | C13: CSK | D13: 4 wickets | E13: Kolkata | F13: 2013-04-20 | G13: T20 | J13: dd | K13: 0
A14: CSK | B14: KKR | C14: CSK | D14: 14 runs | E14: Chennai | F14: 2013-04-28 | G14: T20 | J14: Total | K14: =SUM(K5:K13) -> 25
A15: CSK | B15: KKR | C15: CSK | D15: 34 runs | E15: Ranchi | F15: 2014-05-02 | G15: T20 | P15: Latest match winner: | Q15: CSK
A16: KKR | B16: CSK | C16: KKR | D16: 8 wickets | E16: Kolkata | F16: 2014-05-20 | G16: T20 | J16: =CONCATENATE("probability of"," ",K1," ","winning next 2 matches against"," ",K2,":") -> probability of KKR winning next 2 matches against CSK: | P16: =IF(Q15=K1,N6*N6,N7*N6) -> 0.046875
A17: CSK | B17: KKR | C17: CSK | D17: 2 runs | E17: Chennai | F17: 2015-04-28 | G17: T20 | J17: =CONCATENATE("probability of"," ",K1," ","losing next 2 matches against"," ",K2,":") -> probability of KKR losing next 2 matches against CSK: | P17: =IF(Q15=K1,O6*O7,O7*O7) -> 0.31640625
A18: KKR | B18: CSK | C18: KKR | D18: 7 wickets | E18: Kolkata | F18: 2015-04-30 | G18: T20 | J18: =CONCATENATE("probability of"," ",K1," ","winning 1 and losing 1 from the next two matches against"," ",K2,":") -> probability of KKR winning 1 and losing 1 from the next two matches against CSK: | P18: =IF(Q15=K1,(O6*N7)+(N6*O6),(N7*O6)+(O7*N7)) -> 0.5390625
A19: CSK | B19: KKR | C19: CSK | D19: 5 wickets | E19: Chennai | F19: 2018-04-10 | G19: T20
A20: KKR | B20: CSK | C20: KKR | D20: 6 wickets | E20: Kolkata | F20: 2018-05-03 | G20: T20 | J20: =CONCATENATE("probability of"," ",K2," ","winning next 2 matches against"," ",K1,":") -> probability of CSK winning next 2 matches against KKR: | P20: =IF(Q15=K1,O6*O7,O7*O7) -> 0.31640625
A21: CSK | B21: KKR | C21: CSK | D21: 7 wickets | E21: Chennai | F21: 2019-04-09 | G21: T20 | J21: =CONCATENATE("probability of"," ",K2," ","losing next 2 matches against"," ",K1,":") -> probability of CSK losing next 2 matches against KKR: | P21: =IF(Q15=K1,N6*N6,N7*N6) -> 0.046875
A22: KKR | B22: CSK | C22: CSK | D22: 5 wickets | E22: Kolkata | F22: 2019-04-14 | G22: T20 | J22: =CONCATENATE("probability of"," ",K2," ","winning 1 and losing 1 from the next two matches against"," ",K1,":") -> probability of CSK winning 1 and losing 1 from the next two matches against KKR: | P22: =P18 -> 0.5390625
A23: KKR | B23: CSK | C23: KKR | D23: 10 runs | E23: Abu Dhabi | F23: 2020-10-07 | G23: T20
A24: CSK | B24: KKR | C24: CSK | D24: 6 wickets | E24: Dubai (DSC) | F24: 2020-10-29 | G24: T20
A25: KKR | B25: CSK | C25: CSK | D25: 18 runs | E25: Wankhede | F25: 2021-04-21 | G25: T20
A26: CSK | B26: KKR | C26: CSK | D26: 2 wickets | E26: Abu Dhabi | F26: 2021-09-26 | G26: T20
A27: CSK | B27: KKR | C27: CSK | D27: 27 runs | E27: Dubai (DSC) | F27: 2021-10-15 | G27: T20

Sheet PBKS vs DC
A1: Team 1 | B1: Team 2 | C1: Winner | D1: Margin | E1: Ground | F1: Match Date | G1: Scorecard | H1: Super over winner | J1: T1 | K1: PBKS
A2: PBKS | B2: DC | C2: PBKS | D2: 4 wickets | E2: Mohali | F2: 39565 | G2: T20 | J2: T2 | K2: DC
A3: DC | B3: PBKS | C3: PBKS | D3: 6 runs | E3: Delhi | F3: 39585 | G3: T20
A4: DC | B4: PBKS | C4: DC | D4: 10 wickets | E4: Cape Town | F4: 39922 | G4: T20 | J4: Codes | K4: Values
A5: DC | B5: PBKS | C5: PBKS | D5: 6 wickets | E5: Bloemfontein | F5: 39948 | G5: T20 | J5: t1t1 | K5: 7 | M5: MATRIX | N5: PBKS | O5: DC
A6: PBKS | B6: DC | C6: DC | D6: 5 wickets | E6: Mohali | F6: 40250 | G6: T20 | J6: t1t2 | K6: 8 | M6: PBKS | N6: =K5/(K5+K6+K11) -> 0.4666666667 | O6: =K6/(K5+K6+K11) -> 0.5333333333
A7: DC | B7: PBKS | C7: PBKS | D7: 7 wickets | E7: Delhi | F7: 40279 | G7: T20 | J7: t2t1 | K7: 7 | M7: DC | N7: =K7/(K7+K8+K12) -> 0.5833333333 | O7: =K8/(K7+K8+K12) -> 0.4166666667
A8: DC | B8: PBKS | C8: DC | D8: 29 runs | E8: Delhi | F8: 40656 | G8: T20 | J8: t2t2 | K8: 5
A9: PBKS | B9: DC | C9: PBKS | D9: 29 runs | E9: Dharamsala | F9: 40678 | G9: T20 | J9: dt1 | K9: 0
A10: DC | B10: PBKS | C10: DC | D10: 5 wickets | E10: Delhi | F10: 41044 | G10: T20 | J10: dt2 | K10: 0
A11: PBKS | B11: DC | C11: DC | D11: 6 wickets | E11: Dharamsala | F11: 41048 | G11: T20 | J11: t1d | K11: 0
A12: DC | B12: PBKS | C12: PBKS | D12: 5 wickets | E12: Delhi | F12: 41387 | G12: T20 | J12: t2d | K12: 0
A13: PBKS | B13: DC | C13: PBKS | D13: 7 runs | E13: Dharamsala | F13: 41410 | G13: T20 | J13: dd | K13: 0
A14: DC | B14: PBKS | C14: PBKS | D14: 4 wickets | E14: Delhi | F14: 41778 | G14: T20 | J14: Total | K14: =SUM(K5:K13) -> 27
A15: PBKS | B15: DC | C15: PBKS | D15: 7 wickets | E15: Mohali | F15: 41784 | G15: T20 | P15: Latest match winner: | Q15: DC
A16: PBKS | B16: DC | C16: DC | D16: 5 wickets | E16: Pune | F16: 42109 | G16: T20 | J16: =CONCATENATE("probability of"," ",K1," ","winning next 2 matches against"," ",K2,":") -> probability of PBKS winning next 2 matches against DC: | P16: =IF(Q15=K1,N6*N6,N7*N6) -> 0.2722222222
A17: DC | B17: PBKS | C17: DC | D17: 9 wickets | E17: Delhi | F17: 42125 | G17: T20 | J17: =CONCATENATE("probability of"," ",K1," ","losing next 2 matches against"," ",K2,":") -> probability of PBKS losing next 2 matches against DC: | P17: =IF(Q15=K1,O6*O7,O7*O7) -> 0.1736111111
A18: DC | B18: PBKS | C18: DC | D18: 8 wickets | E18: Delhi | F18: 42475 | G18: T20 | J18: =CONCATENATE("probability of"," ",K1," ","winning 1 and losing 1 from the next two matches against"," ",K2,":") -> probability of PBKS winning 1 and losing 1 from the next two matches against DC: | P18: =IF(Q15=K1,(O6*N7)+(N6*O6),(N7*O6)+(O7*N7)) -> 0.5541666667
A19: PBKS | B19: DC | C19: PBKS | D19: 9 runs | E19: Mohali | F19: 42497 | G19: T20
A20: DC | B20: PBKS | C20: DC | D20: 51 runs | E20: Delhi | F20: 42840 | G20: T20 | J20: =CONCATENATE("probability of"," ",K2," ","winning next 2 matches against"," ",K1,":") -> probability of DC winning next 2 matches against PBKS: | P20: =IF(Q15=K1,O6*O7,O7*O7) -> 0.1736111111
A21: PBKS | B21: DC | C21: PBKS | D21: 10 wickets | E21: Mohali | F21: 42855 | G21: T20 | J21: =CONCATENATE("probability of"," ",K2," ","losing next 2 matches against"," ",K1,":") -> probability of DC losing next 2 matches against PBKS: | P21: =IF(Q15=K1,N6*N6,N7*N6) -> 0.2722222222
A22: PBKS | B22: DC | C22: PBKS | D22: 6 wickets | E22: Mohali | F22: 43198 | G22: T20 | J22: =CONCATENATE("probability of"," ",K2," ","winning 1 and losing 1 from the next two matches against"," ",K1,":") -> probability of DC winning 1 and losing 1 from the next two matches against PBKS: | P22: =P18 -> 0.5541666667
A23: DC | B23: PBKS | C23: PBKS | D23: 4 runs | E23: Delhi | F23: 43213 | G23: T20
A24: PBKS | B24: DC | C24: PBKS | D24: 14 runs | E24: Mohali | F24: 43556 | G24: T20
A25: DC | B25: PBKS | C25: DC | D25: 5 wickets | E25: Delhi | F25: 43575 | G25: T20
A26: DC | B26: PBKS | C26: DC | E26: Dubai (DSC) | F26: 44094 | G26: T20 | H26: DC
A27: PBKS | B27: DC | C27: PBKS | D27: 5 wickets | E27: Dubai (DSC) | F27: 44124 | G27: T20
A28: DC | B28: PBKS | C28: DC | D28: 6 wickets | E28: Wankhede | F28: 44304 | G28: T20
A29: PBKS | B29: DC | C29: DC | D29: 7 wickets | E29: Ahmedabad | F29: 44318 | G29: T20

Sheet PBKS vs CSK
A1: Team 1 | B1: Team 2 | C1: Winner | D1: Margin | E1: Ground | F1: Scorecard | G1: Super over winner | I1: T1 | J1: PBKS
A2: PBKS | B2: CSK | C2: CSK | D2: 33 runs | E2: Mohali | F2: T20 | I2: T2 | J2: CSK
A3: CSK | B3: PBKS | C3: CSK | D3: 18 runs | E3: Chennai | F3: T20
A4: CSK | B4: PBKS | C4: CSK | D4: 9 wickets | E4: Wankhede | F4: T20 | I4: Codes | J4: Values
A5: CSK | B5: PBKS | C5: CSK | D5: 12 runs | E5: Centurion | F5: T20 | I5: t1t1 | J5: 4 | L5: MATRIX | M5: PBKS | N5: CSK
A6: CSK | B6: PBKS | C6: CSK | D6: 24 runs | E6: Durban | F6: T20 | I6: t1t2 | J6: 5 | L6: PBKS | M6: =J5/(J5+J6+J11) -> 0.4444444444 | N6: =J6/(J5+J6+J11) -> 0.5555555556
A7: CSK | B7: PBKS | C7: PBKS | E7: Chennai | F7: T20 | G7: PBKS | I7: t2t1 | J7: 6 | L7: CSK | M7: =J7/(J7+J8+J12) -> 0.4 | N7: =J8/(J7+J8+J12) -> 0.6
A8: PBKS | B8: CSK | C8: CSK | D8: 6 wickets | E8: Dharamsala | F8: T20 | I8: t2t2 | J8: 9
A9: PBKS | B9: CSK | C9: PBKS | D9: 6 wickets | E9: Mohali | F9: T20 | I9: dt1 | J9: 0
A10: CSK | B10: PBKS | C10: PBKS | D10: 7 runs | E10: Chennai | F10: T20 | I10: dt2 | J10: 0
A11: PBKS | B11: CSK | C11: PBKS | D11: 6 wickets | E11: Dharamsala | F11: T20 | I11: t1d | J11: 0
A12: PBKS | B12: CSK | C12: CSK | D12: 10 wickets | E12: Mohali | F12: T20 | I12: t2d | J12: 0
A13: CSK | B13: PBKS | C13: CSK | D13: 15 runs | E13: Chennai | F13: T20 | I13: dd | J13: 0
A14: CSK | B14: PBKS | C14: PBKS | D14: 6 wickets | E14: Abu Dhabi | F14: T20 | I14: Total | J14: =SUM(J5:J13) -> 24
A15: PBKS | B15: CSK | C15: PBKS | D15: 44 runs | E15: Cuttack | F15: T20 | O15: Latest match winner: | P15: PBKS
A16: CSK | B16: PBKS | C16: PBKS | D16: 24 runs | E16: Wankhede | F16: T20 | I16: =CONCATENATE("probability of"," ",J1," ","winning next 2 matches against"," ",J2,":") -> probability of PBKS winning next 2 matches against CSK: | O16: =IF(P15=J1,M6*M6,M7*M6) -> 0.1975308642
A17: CSK | B17: PBKS | C17: CSK | D17: 97 runs | E17: Chennai | F17: T20 | I17: =CONCATENATE("probability of"," ",J1," ","losing next 2 matches against"," ",J2,":") -> probability of PBKS losing next 2 matches against CSK: | O17: =IF(P15=J1,N6*N7,N7*N7) -> 0.3333333333
A18: PBKS | B18: CSK | C18: CSK | D18: 7 wickets | E18: Mohali | F18: T20 | I18: =CONCATENATE("probability of"," ",J1," ","winning 1 and losing 1 from the next two matches against"," ",J2,":") -> probability of PBKS winning 1 and losing 1 from the next two matches against CSK: | O18: =IF(P15=J1,(N6*M7)+(M6*N6),(M7*N6)+(N7*M7)) -> 0.4691358025
A19: PBKS | B19: CSK | C19: PBKS | D19: 4 runs | E19: Mohali | F19: T20
A20: CSK | B20: PBKS | C20: CSK | D20: 5 wickets | E20: Pune | F20: T20 | I20: =CONCATENATE("probability of"," ",J2," ","winning next 2 matches against"," ",J1,":") -> probability of CSK winning next 2 matches against PBKS: | O20: =IF(P15=J1,N6*N7,N7*N7) -> 0.3333333333
A21: CSK | B21: PBKS | C21: CSK | D21: 22 runs | E21: Chennai | F21: T20 | I21: =CONCATENATE("probability of"," ",J2," ","losing next 2 matches against"," ",J1,":") -> probability of CSK losing next 2 matches against PBKS: | O21: =IF(P15=J1,M6*M6,M7*M6) -> 0.1975308642
A22: PBKS | B22: CSK | C22: PBKS | D22: 6 wickets | E22: Mohali | F22: T20 | I22: =CONCATENATE("probability of"," ",J2," ","winning 1 and losing 1 from the next two matches against"," ",J1,":") -> probability of CSK winning 1 and losing 1 from the next two matches against PBKS: | O22: =O18 -> 0.4691358025
A23: PBKS | B23: CSK | C23: CSK | D23: 10 wickets | E23: Dubai (DSC) | F23: T20
A24: CSK | B24: PBKS | C24: CSK | D24: 9 wickets | E24: Abu Dhabi | F24: T20
A25: PBKS | B25: CSK | C25: CSK | D25: 6 wickets | E25: Wankhede | F25: T20
A26: CSK | B26: PBKS | C26: PBKS | D26: 6 wickets | E26: Dubai (DSC) | F26: T20

Sheet DC vs CSK
A1: Team 1 | B1: Team 2 | C1: Winner | D1: Margin | E1: Ground | F1: Scorecard | G1: Super over winner | I1: T1 | J1: DC
A2: CSK | B2: DC | C2: DC | D2: 8 wickets | E2: Chennai | F2: T20 | I2: T2 | J2: CSK
A3: DC | B3: CSK | C3: CSK | D3: 4 wickets | E3: Delhi | F3: T20
A4: CSK | B4: DC | C4: DC | D4: 9 runs | E4: Durban | F4: T20 | I4: Codes | J4: Values
A5: CSK | B5: DC | C5: CSK | D5: 18 runs | E5: Johannesburg | F5: T20 | I5: t1t1 | J5: 3 | L5: MATRIX | M5: DC | N5: CSK
A6: DC | B6: CSK | C6: CSK | D6: 5 wickets | E6: Delhi | F6: T20 | I6: t1t2 | J6: 7 | L6: DC | M6: =J5/(J5+J6+J11) -> 0.3 | N6: =J6/(J5+J6+J11) -> 0.7
A7: CSK | B7: DC | C7: DC | D7: 6 wickets | E7: Chennai | F7: T20 | I7: t2t1 | J7: 6 | L7: CSK | M7: =J7/(J7+J8+J12) -> 0.4 | N7: =J8/(J7+J8+J12) -> 0.6
A8: CSK | B8: DC | C8: CSK | D8: 18 runs | E8: Chennai | F8: T20 | I8: t2t2 | J8: 9
A9: DC | B9: CSK | C9: DC | D9: 8 wickets | E9: Delhi | F9: T20 | I9: dt1 | J9: 0
A10: CSK | B10: DC | C10: CSK | D10: 9 wickets | E10: Chennai | F10: T20 | I10: dt2 | J10: 0
A11: CSK | B11: DC | C11: CSK | D11: 86 runs | E11: Chennai | F11: T20 | I11: t1d | J11: 0
A12: DC | B12: CSK | C12: CSK | D12: 86 runs | E12: Delhi | F12: T20 | I12: t2d | J12: 0
A13: CSK | B13: DC | C13: CSK | D13: 33 runs | E13: Chennai | F13: T20 | I13: dd | J13: 0
A14: CSK | B14: DC | C14: CSK | D14: 93 runs | E14: Abu Dhabi | F14: T20 | I14: Total | J14: =SUM(J5:J13) -> 25
A15: DC | B15: CSK | C15: CSK | D15: 8 wickets | E15: Delhi | F15: T20 | O15: Latest match winner: | P15: CSK
A16: CSK | B16: DC | C16: CSK | D16: 1 run | E16: Chennai | F16: T20 | I16: =CONCATENATE("probability of"," ",J1," ","winning next 2 matches against"," ",J2,":") -> probability of DC winning next 2 matches against CSK: | O16: =IF(P15=J1,M6*M6,M7*M6) -> 0.12
A17: DC | B17: CSK | C17: DC | D17: 6 wickets | E17: Raipur | F17: T20 | I17: =CONCATENATE("probability of"," ",J1," ","losing next 2 matches against"," ",J2,":") -> probability of DC losing next 2 matches against CSK: | O17: =IF(P15=J1,N6*N7,N7*N7) -> 0.36
A18: CSK | B18: DC | C18: CSK | D18: 13 runs | E18: Pune | F18: T20 | I18: =CONCATENATE("probability of"," ",J1," ","winning 1 and losing 1 from the next two matches against"," ",J2,":") -> probability of DC winning 1 and losing 1 from the next two matches against CSK: | O18: =IF(P15=J1,(N6*M7)+(M6*N6),(M7*N6)+(N7*M7)) -> 0.52
A19: DC | B19: CSK | C19: DC | D19: 34 runs | E19: Delhi | F19: T20
A20: DC | B20: CSK | C20: CSK | D20: 6 wickets | E20: Delhi | F20: T20 | I20: =CONCATENATE("probability of"," ",J2," ","winning next 2 matches against"," ",J1,":") -> probability of CSK winning next 2 matches against DC: | O20: =IF(P15=J1,N6*N7,N7*N7) -> 0.36
A21: CSK | B21: DC | C21: CSK | D21: 80 runs | E21: Chennai | F21: T20 | I21: =CONCATENATE("probability of"," ",J2," ","losing next 2 matches against"," ",J1,":") -> probability of CSK losing next 2 matches against DC: | O21: =IF(P15=J1,M6*M6,M7*M6) -> 0.12
A22: CSK | B22: DC | C22: CSK | D22: 6 wickets | E22: Visakhapatnam | F22: T20 | I22: =CONCATENATE("probability of"," ",J2," ","winning 1 and losing 1 from the next two matches against"," ",J1,":") -> probability of CSK winning 1 and losing 1 from the next two matches against DC: | O22: =O18 -> 0.52
A23: CSK | B23: DC | C23: DC | D23: 44 runs | E23: Dubai (DSC) | F23: T20
A24: DC | B24: CSK | C24: DC | D24: 5 wickets | E24: Sharjah | F24: T20
A25: CSK | B25: DC | C25: DC | D25: 7 wickets | E25: Wankhede | F25: T20
A26: DC | B26: CSK | C26: DC | D26: 3 wickets | E26: Dubai (DSC) | F26: T20
A27: DC | B27: CSK | C27: CSK | D27: 4 wickets | E27: Dubai (DSC) | F27: T20

Sheet Consolidated probability tables
B2: AGAINST | C2: CSK | G2: AGAINST | H2: RCB | L2: AGAINST | M2: SRH | Q2: AGAINST | R2: PBKS
C3: 2 wins | D3: 2 losses | E3: 1 win, 1 loss | H3: 2 wins | I3: 2 losses | J3: 1 win, 1 loss | M3: 2 wins | N3: 2 losses | O3: 1 win, 1 loss | R3: 2 wins | S3: 2 losses | T3: 1 win, 1 loss
B4: MI | C4: ='MI vs CSK'!O20 -> 0.1111111111 | D4: ='MI vs CSK'!O21 -> 0.3859649123 | E4: ='MI vs CSK'!O22 -> 0.5029239766 | G4: MI | H4: ='MI vs RCB'!O20 -> 0.03305785124 | I4: ='MI vs RCB'!O21 -> 0.385026738 | J4: ='MI vs RCB'!O22 -> 0.5819154108 | L4: MI | M4: ='MI vs SRH'!O20 -> 0.1555555556 | N4: ='MI vs SRH'!O21 -> 0.2844444444 | O4: ='MI vs SRH'!O22 -> 0.56 | Q4: MI | R4: ='MI vs PBKS'!O20 -> 0.1758241758 | S4: ='MI vs PBKS'!O21 -> 0.1836734694 | T4: ='MI vs PBKS'!O22 -> 0.6405023548
B5: RCB | C5: ='RCB vs CSK'!O20 -> 0.4186851211 | D5: ='RCB vs CSK'!O21 -> 0.1307189542 | E5: ='RCB vs CSK'!O22 -> 0.3537101115 | G5: CSK | H5: ='RCB vs CSK'!O16 -> 0.1307189542 | I5: ='RCB vs CSK'!O17 -> 0.4186851211 | J5: ='RCB vs CSK'!O18 -> 0.3537101115 | L5: RCB | M5: ='RCB vs SRH'!O20 -> 0.19140625 | N5: ='RCB vs SRH'!O21 -> 0.1538461538 | O5: ='RCB vs SRH'!O22 -> 0.5649038462 | Q5: RCB | R5: ='RCB vs PBKS'!O20 -> 0.25 | S5: ='RCB vs PBKS'!O21 -> 0.3402777778 | T5: ='RCB vs PBKS'!O22 -> 0.4097222222
B6: RR | C6: ='RR vs CSK'!O20 -> 0.4 | D6: ='RR vs CSK'!O21 -> 0.1111111111 | E6: ='RR vs CSK'!O22 -> 0.4888888889 | G6: RR | H6: ='RCB vs RR'!O16 -> 0.2066115702 | I6: ='RCB vs RR'!O17 -> 0.1818181818 | J6: ='RCB vs RR'!O18 -> 0.3107438017 | L6: RR | M6: ='RR VS SRH'!O20 -> 0.1111111111 | N6: ='RR VS SRH'!O21 -> 0.3333333333 | O6: ='RR VS SRH'!O22 -> 0.5555555556 | Q6: RR | R6: ='RR vs PBKS'!O20 -> 0.2 | S6: ='RR vs PBKS'!O21 -> 0.25 | T6: ='RR vs PBKS'!O22 -> 0.55
B7: SRH | C7: ='SRH vs CSK'!O20 -> 0.4186851211 | D7: ='SRH vs CSK'!O21 -> 0.04411764706 | E7: ='SRH vs CSK'!O22 -> 0.5371972318 | G7: SRH | H7: ='RCB vs SRH'!O16 -> 0.1538461538 | I7: ='RCB vs SRH'!O17 -> 0.19140625 | J7: ='RCB vs SRH'!O18 -> 0.5649038462 | L7: CSK | M7: ='SRH vs CSK'!O16 -> 0.04411764706 | N7: ='SRH vs CSK'!O17 -> 0.4186851211 | O7: ='SRH vs CSK'!O18 -> 0.5371972318 | Q7: SRH | R7: ='SRH vs PBKS'!O20 -> 0.1736111111 | S7: ='SRH vs PBKS'!O21 -> 0.3111111111 | T7: ='SRH vs PBKS'!O22 -> 0.5152777778
B8: KKR | C8: ='KKR vs CSK'!P20 -> 0.31640625 | D8: ='KKR vs CSK'!P21 -> 0.046875 | E8: ='KKR vs CSK'!P22 -> 0.5390625 | G8: KKR | H8: ='RCB vs KKR'!O16 -> 0.2153846154 | I8: ='RCB vs KKR'!O17 -> 0.36 | J8: ='RCB vs KKR'!O18 -> 0.4246153846 | L8: KKR | M8: ='SRH vs KKR'!O16 -> 0.04444444444 | N8: ='SRH vs KKR'!O17 -> 0.3025 | O8: ='SRH vs KKR'!O18 -> 0.5755555556 | Q8: KKR | R8: ='KKR vs PBKS'!O20 -> 0.01234567901 | S8: ='KKR vs PBKS'!O21 -> 0.514619883 | T8: ='KKR vs PBKS'!O22 -> 0.4730344379
B9: PBKS | C9: ='PBKS vs CSK'!O20 -> 0.3333333333 | D9: ='PBKS vs CSK'!O21 -> 0.1975308642 | E9: ='PBKS vs CSK'!O22 -> 0.4691358025 | G9: PBKS | H9: ='RCB vs PBKS'!O16 -> 0.3402777778 | I9: ='RCB vs PBKS'!O17 -> 0.25 | J9: ='RCB vs PBKS'!O18 -> 0.4097222222 | L9: PBKS | M9: ='SRH vs PBKS'!O16 -> 0.3111111111 | N9: ='SRH vs PBKS'!O17 -> 0.1736111111 | O9: ='SRH vs PBKS'!O18 -> 0.5152777778 | Q9: CSK | R9: ='PBKS vs CSK'!O16 -> 0.1975308642 | S9: ='PBKS vs CSK'!O17 -> 0.3333333333 | T9: ='PBKS vs CSK'!O18 -> 0.4691358025
B10: DC | C10: ='DC vs CSK'!O20 -> 0.36 | D10: ='DC vs CSK'!O21 -> 0.12 | E10: ='DC vs CSK'!O22 -> 0.52 | G10: DC | H10: ='RCB vs DC'!O16 -> 0.64 | I10: ='RCB vs DC'!O17 -> 0.08 | J10: ='RCB vs DC'!O18 -> 0.16 | L10: DC | M10: ='SRH vs DC'!O16 -> 0.24 | N10: ='SRH vs DC'!O17 -> 0.36 | O10: ='SRH vs DC'!O18 -> 0.4 | Q10: DC | R10: ='PBKS vs DC'!P16 -> 0.2722222222 | S10: ='PBKS vs DC'!P17 -> 0.1736111111 | T10: ='PBKS vs DC'!P18 -> 0.5541666667
B13: AGAINST | C13: MI | G13: AGAINST | H13: RR | L13: AGAINST | M13: KKR | Q13: AGAINST | R13: DC
C14: 2 wins | D14: 2 losses | E14: 1 win, 1 loss | H14: 2 wins | I14: 2 losses | J14: 1 win, 1 loss | M14: 2 wins | N14: 2 losses | O14: 1 win, 1 loss | R14: 2 wins | S14: 2 losses | T14: 1 win, 1 loss
B15: CSK | C15: ='MI vs CSK'!O16 -> 0.3859649123 | D15: ='MI vs CSK'!O17 -> 0.1111111111 | E15: ='MI vs CSK'!O18 -> 0.5029239766 | G15: MI | H15: ='MI vs RR'!O20 -> 0.1818181818 | I15: ='MI vs RR'!O21 -> 0.25 | J15: ='MI vs RR'!O22 -> 0.5227272727 | L15: MI | M15: ='MI VS KKR'!O20 -> 0.1111111111 | N15: ='MI VS KKR'!O21 -> 0.5151515152 | O15: ='MI VS KKR'!O22 -> 0.3737373737 | Q15: MI | R15: ='MI vs DC'!O20 -> 0.2899408284 | S15: ='MI vs DC'!O21 -> 0.2596153846 | T15: ='MI vs DC'!O22 -> 0.450443787
B16: RCB | C16: ='MI vs RCB'!O16 -> 0.385026738 | D16: ='MI vs RCB'!O17 -> 0.03305785124 | E16: ='MI vs RCB'!O18 -> 0.5819154108 | G16: RCB | H16: ='RCB vs RR'!O20 -> 0.1818181818 | I16: ='RCB vs RR'!O21 -> 0.2066115702 | J16: ='RCB vs RR'!O22 -> 0.3107438017 | L16: RCB | M16: ='RCB vs KKR'!O20 -> 0.36 | N16: ='RCB vs KKR'!O21 -> 0.2153846154 | O16: ='RCB vs KKR'!O22 -> 0.4246153846 | Q16: RCB | R16: ='RCB vs DC'!O20 -> 0.08 | S16: ='RCB vs DC'!O21 -> 0.64 | T16: ='RCB vs DC'!O22 -> 0.16
B17: RR | C17: ='MI vs RR'!O16 -> 0.25 | D17: ='MI vs RR'!O17 -> 0.1818181818 | E17: ='MI vs RR'!O18 -> 0.5227272727 | G17: CSK | H17: ='RR vs CSK'!O16 -> 0.1111111111 | I17: ='RR vs CSK'!O17 -> 0.4 | J17: ='RR vs CSK'!O18 -> 0.4888888889 | L17: RR | M17: ='RR vs KKR'!O20 -> 0.25 | N17: ='RR vs KKR'!O21 -> 0.1363636364 | O17: ='RR vs KKR'!O22 -> 0.5681818182 | Q17: RR | R17: ='RR vs DC'!O20 -> 0.4049586777 | S17: ='RR vs DC'!O21 -> 0.2424242424 | T17: ='RR vs DC'!O22 -> 0.3526170799
B18: SRH | C18: ='MI vs SRH'!O16 -> 0.2844444444 | D18: ='MI vs SRH'!O17 -> 0.1555555556 | E18: ='MI vs SRH'!O18 -> 0.56 | G18: SRH | H18: ='RR VS SRH'!O16 -> 0.3333333333 | I18: ='RR VS SRH'!O17 -> 0.1111111111 | J18: ='RR VS SRH'!O18 -> 0.5555555556 | L18: SRH | M18: ='SRH vs KKR'!O20 -> 0.3025 | N18: ='SRH vs KKR'!O21 -> 0.04444444444 | O18: ='SRH vs KKR'!O22 -> 0.5755555556 | Q18: SRH | R18: ='SRH vs DC'!O20 -> 0.36 | S18: ='SRH vs DC'!O21 -> 0.24 | T18: ='SRH vs DC'!O22 -> 0.4
B19: KKR | C19: ='MI VS KKR'!O16 -> 0.5151515152 | D19: ='MI VS KKR'!O17 -> 0.1111111111 | E19: ='MI VS KKR'!O18 -> 0.3737373737 | G19: KKR | H19: ='RR vs KKR'!O16 -> 0.1363636364 | I19: ='RR vs KKR'!O17 -> 0.25 | J19: ='RR vs KKR'!O18 -> 0.5681818182 | L19: CSK | M19: ='KKR vs CSK'!P16 -> 0.046875 | N19: ='KKR vs CSK'!P17 -> 0.31640625 | O19: ='KKR vs CSK'!P18 -> 0.5390625 | Q19: KKR | R19: ='KKR vs DC'!P20 -> 0.1666666667 | S19: ='KKR vs DC'!P21 -> 0.36 | T19: ='KKR vs DC'!P22 -> 0.3666666667
B20: PBKS | C20: ='MI vs PBKS'!O16 -> 0.1836734694 | D20: ='MI vs PBKS'!O17 -> 0.1758241758 | E20: ='MI vs PBKS'!O18 -> 0.6405023548 | G20: PBKS | H20: ='RR vs PBKS'!O16 -> 0.25 | I20: ='RR vs PBKS'!O17 -> 0.2 | J20: ='RR vs PBKS'!O18 -> 0.55 | L20: PBKS | M20: ='KKR vs PBKS'!O16 -> 0.514619883 | N20: ='KKR vs PBKS'!O17 -> 0.01234567901 | O20: ='KKR vs PBKS'!O18 -> 0.4730344379 | Q20: PBKS | R20: ='PBKS vs DC'!P20 -> 0.1736111111 | S20: ='PBKS vs DC'!P21 -> 0.2722222222 | T20: ='PBKS vs DC'!P22 -> 0.5541666667
B21: DC | C21: ='MI vs DC'!O16 -> 0.2596153846 | D21: ='MI vs DC'!O17 -> 0.2899408284 | E21: ='MI vs DC'!O18 -> 0.450443787 | G21: DC | H21: ='RR vs DC'!O16 -> 0.2424242424 | I21: ='RR vs DC'!O17 -> 0.4049586777 | J21: ='RR vs DC'!O18 -> 0.3526170799 | L21: DC | M21: ='KKR vs DC'!P16 -> 0.36 | N21: ='KKR vs DC'!P17 -> 0.1666666667 | O21: ='KKR vs DC'!P18 -> 0.3666666667 | Q21: CSK | R21: ='DC vs CSK'!O16 -> 0.12 | S21: ='DC vs CSK'!O17 -> 0.36 | T21: ='DC vs CSK'!O18 -> 0.52
